{"text_format":"1","workbook":"xlsx","n_sheets":8,"sheets":["MENU","Antargaz","Primagaz","Butagaz","Totalgaz","Registre_1","Registre_2","Registre"],"not_rendered":{"charts":0,"images":39,"macros":1,"external_links":0,"defined_names":18,"comments":0,"pivot_tables":0},"unopened":[],"bounds":{"document_bytes":16777216,"sheet_cells":100000,"rows_first":2000,"rows_last":500,"rows_between":2000,"halvings":0,"cell_chars":16384,"cell_head_chars":4096},"cells_cut":0,"cells_raw":0,"read":"whole","date_system":"1900"}

{"sheet":"MENU","index":0,"n_rows":0,"n_cols":0,"rows_kept":0,"cut":false,"hidden":false,"merged":[]}

{"sheet":"Antargaz","index":1,"n_rows":64,"n_cols":20,"rows_kept":64,"cut":false,"hidden":true,"merged":[[12,0,13,11],[44,9,45,9],[44,10,45,10],[15,2,15,3],[15,4,15,6],[17,2,17,4],[21,2,21,4],[21,5,21,7],[23,3,23,7],[25,2,25,4],[25,5,25,10],[28,4,28,6],[30,4,30,6],[35,10,43,10],[32,5,32,6],[44,8,45,8],[63,4,63,7],[63,8,63,11],[51,2,57,2],[58,2,59,2],[58,3,59,3],[35,2,43,2],[44,2,45,2],[64,0,69,3],[64,4,69,7],[44,7,45,7],[44,3,45,3],[44,4,45,4],[44,5,45,5],[46,2,46,9],[64,8,69,11],[58,4,59,4],[58,5,59,5],[58,6,59,6],[51,6,57,6],[60,2,60,5],[63,0,63,3]]}
[null,null,null,null,null,null,null,null,null,null,null,null,null,null,null,null,null,null,null,"gilles.passeron@nicecotedazur.org"]
[]
[null,null,null,null,null,null,null,null,null,null,null,null,null,null,null,null,null,null,null,"fabien.quenin@nicecotedazur.org;denis.dibenedetto@nicecotedazur.org;robert.peters@nicecotedazur.org;christophe.corvisier@nicecotedazur.org"]
[]
[]
[]
[]
[]
[]
[]
[]
[]
["FORMULAIRE D'ENLEVEMENT"]
[]
[]
[null,null,"Date de la demande :"]
[]
[null,null,"Demandeur - nom de la déchetterie :",null,null,"NICE OUEST"]
[]
[null,null,"Compte :",70615043]
[]
[null,null,"Nom de la personne à contacter : ",null,null,"Mr Peters ou Mr Quenin"]
[]
[null,null,"Tél : ","06/64/48/10/08 ou 06/65/53/22/23"]
[]
[null,null,"Adresse du site de récupération : ",null,null,"DECHETTERIE DE NICE EST - Angle Bd Jean Baptiste Vérany / Rue Georges Chapel"]
[]
[]
[null,null,"Jours d'ouverture :",null,"L - M - M - J - V - S - D"]
[]
[null,null,"Heures d'ouverture : ",null,"8H30 – 11H45 et 14H30 – 17H"]
[]
[]
[]
[]
[null,null,"Exemples de\nbouteilles\nAntagaz",null,null,null,null,null,null,null,"Total"]
[]
[]
[]
[]
[]
[]
[]
[]
[null,null,"Nombre de\nbouteilles à\nrécupérer",null,null,null,null,null,null,null,{"$f":"D45+E45+F45+G45+H45+I45+J45","v":0}]
[]
[null,null,"Nombre de bouteilles récupérées.\nA remplir par\nle chauffeur"]
[]
[]
[]
[]
[null,null,"Exemples de\nbouteilles\nAntagaz",null,null,null,"Total"]
[]
[]
[]
[]
[]
[]
[null,null,"Nombre de\nbouteilles à\nrécupérer",null,null,null,{"$f":"D59+E59+F59","v":0}]
[]
[null,null,"Nombre de bouteilles récupérées.\nA remplir par\nle chauffeur"]
[]
[]
["Date de reprise",null,null,null,"Nom et signature du Chauffeur",null,null,null,"Nom et signature de la déchetterie"]

{"sheet":"Primagaz","index":2,"n_rows":55,"n_cols":11,"rows_kept":55,"cut":false,"hidden":true,"merged":[[55,0,60,3],[55,4,60,7],[55,8,60,11],[12,0,13,11],[34,10,40,10],[42,2,42,9],[50,2,50,7],[54,0,54,3],[54,4,54,7],[54,8,54,11],[34,7,40,7],[34,8,40,8],[34,9,40,9],[34,2,40,2],[27,4,27,6],[29,4,29,6],[14,1,14,9],[15,2,15,3],[15,4,15,6],[17,2,17,4],[34,3,40,3],[34,4,40,4],[34,5,40,5],[34,6,40,6],[20,2,20,4],[20,5,20,7],[22,3,22,7],[24,2,24,4],[24,5,24,10]]}
[]
[]
[]
[]
[]
[]
[]
[]
[]
[]
[]
[]
["FORMULAIRE D'ENLEVEMENT"]
[]
[]
[null,null,"Date de la demande :"]
[]
[null,null,"Demandeur - nom de la déchetterie :",null,null,"NICE OUEST"]
[]
[]
[null,null,"Nom de la personne à contacter : ",null,null,"Mr Peters ou Mr Quenin"]
[]
[null,null,"Tél : ","06/64/48/10/08 ou 06/65/53/22/23"]
[]
[null,null,"Adresse du site de récupération : ",null,null,"DECHETTERIE DE NICE EST - Angle Bd Jean Baptiste Vérany / Rue Georges Chapel"]
[]
[]
[null,null,"Jours d'ouverture :",null,"L - M - M - J - V - S - D"]
[]
[null,null,"Heures d'ouverture : ",null,"8H30 – 11H45 et 14H30 – 17H"]
[]
[]
[]
[]
[null,null,"Exemples de\nbouteilles\nPrimagaz",null,null,null,null,null,null,null,"Total"]
[]
[]
[]
[]
[]
[]
[null,null,"Nombre de\nbouteilles à\nrécupérer",null,null,null,null,null,null,null,{"$f":"D42+E42+F42+G42+H42+I42+J42","v":0}]
[null,null,"Nombre de bouteilles récupérées.\nA remplir par le chauffeur"]
[]
[]
[]
[]
[]
[null,null,"Exemples de Bouteilles\nPrimagaz",null,null,null,null,null,"Total"]
[null,null,"Nombre de\nbouteilles à\nrécupérer",null,null,null,null,null,{"$f":"D50+E50+F50+G50+H50","v":0}]
[null,null,"Nombre de bouteilles récupérées.\nA remplir par le chauffeur"]
[]
[]
[]
["Date de reprise",null,null,null,"Nom et signature du Chauffeur",null,null,null,"Nom et signature de la déchetterie"]

{"sheet":"Butagaz","index":3,"n_rows":49,"n_cols":9,"rows_kept":49,"cut":false,"hidden":true,"merged":[[12,0,13,11],[22,3,22,7],[24,2,24,4],[24,5,24,10],[27,4,27,6],[15,2,15,3],[15,4,15,6],[17,2,17,4],[20,2,20,4],[20,5,20,7],[34,7,41,7],[44,5,44,6],[48,0,48,3],[48,4,48,7],[29,4,29,6],[48,8,48,11],[49,0,54,3],[49,4,54,7],[49,8,54,11],[43,5,43,7]]}
[]
[]
[]
[]
[]
[]
[]
[]
[]
[]
[]
[]
["FORMULAIRE D'ENLEVEMENT"]
[]
[]
[null,null,"Date de la demande :"]
[]
[null,null,"Demandeur - nom de la déchetterie :",null,null,"NICE OUEST"]
[]
[]
[null,null,"Nom de la personne à contacter : ",null,null,"Mr Peters ou Mr Quenin"]
[]
[null,null,"Tél : ","06/64/48/10/08 ou 06/65/53/22/23"]
[]
[null,null,"Adresse du site de récupération : ",null,null,"DECHETTERIE DE NICE EST - Angle Bd Jean Baptiste Vérany / Rue Georges Chapel"]
[]
[]
[null,null,"Jours d'ouverture :",null,"L - M - M - J - V - S - D"]
[]
[null,null,"Heures d'ouverture : ",null,"8H30 – 11H45 et 14H30 – 17H"]
[]
[]
[]
[null,null,null,null,null,"+ / -","Nbr de bouteilles\nà récupérer","Nbr de bouteilles\nrécupérées.\nA remplir par le chauffeur"]
[null,null,null,null,null,"13 kg \nbutane"]
[null,null,null,null,null,"13 kg \npropane"]
[null,null,null,null,null,"13 kg \ncarburation"]
[null,null,null,null,null,"35 kg \npropane"]
[null,null,null,null,null,"viseo"]
[null,null,null,null,null,"10 kg \nbutane"]
[null,null,null,null,null,"Cube \n6 kg butane"]
[null,null,null,null,null,"Cube \n5 kg propane"]
[null,null,null,null,null,"Total",{"$f":"G35+G36+G37+G38+G39+G40+G41+G42","v":0}]
[null,null,null,null,null,"MERCI de COLLECTER LE RELIQUAT"]
[]
[]
[]
[]
["Date de reprise",null,null,null,"Nom et signature du Chauffeur",null,null,null,"Nom et signature de la déchetterie"]

{"sheet":"Totalgaz","index":4,"n_rows":49,"n_cols":11,"rows_kept":49,"cut":false,"hidden":true,"merged":[[37,2,37,9],[12,0,13,11],[48,8,48,11],[49,0,54,3],[49,4,54,7],[49,8,54,11],[15,2,15,3],[15,4,15,6],[17,2,17,4],[21,2,21,4],[21,5,21,7],[23,3,23,7],[25,2,25,4],[25,5,25,10],[28,4,28,6],[30,4,30,6],[48,0,48,3],[48,4,48,7],[43,2,43,6]]}
[]
[]
[]
[]
[]
[]
[]
[]
[]
[]
[]
[]
["FORMULAIRE D'ENLEVEMENT"]
[]
[]
[null,null,"Date de la demande :"]
[]
[null,null,"Demandeur - nom de la déchetterie :",null,null,"NICE OUEST"]
[]
[null,null,"Compte :",80615450]
[]
[null,null,"Nom de la personne à contacter : ",null,null,"Mr Peters ou Mr Quenin"]
[]
[null,null,"Tél : ","06/64/48/10/08 ou 06/65/53/22/23"]
[]
[null,null,"Adresse du site de récupération : ",null,null,"DECHETTERIE DE NICE EST - Angle Bd Jean Baptiste Vérany / Rue Georges Chapel"]
[]
[]
[null,null,"Jours d'ouverture :",null,"L - M - M - J - V - S - D"]
[]
[null,null,"Heures d'ouverture : ",null,"8H30 – 11H45 et 14H30 – 17H"]
[]
[]
[]
[null,null,"Exemples de\nbouteilles\nTotalgaz"]
[null,null,null,"6kg","10kg","13kg","5kg","13kg","13kg","35kg","Total"]
[null,null,"Nombre de\nbouteilles à\nrécupérer",null,null,null,null,null,null,null,{"$f":"SUM(D37:J37)","v":0}]
[null,null,"Nombre de bouteilles récupérées.\nA remplir par\nle chauffeur"]
[]
[]
[null,null,"Exemples de\nbouteilles\nSogasud\net Repsol",null,null,null,"Autres marques\ndes bouteilles\nrattachées"]
[null,null,null,"12,5kg","11kg","35kg",null,null,null,null,"Total"]
[null,null,"Nombre de\nbouteilles à\nrécupérer",null,null,null,null,null,null,null,{"$f":"D43+E43+F43+H43","v":0}]
[null,null,"Nombre de bouteilles récupérées.\nA remplir par\nle chauffeur"]
[]
[]
[]
[]
["Date de reprise",null,null,null,"Nom et signature du Chauffeur",null,null,null,"Nom et signature de la déchetterie"]

{"sheet":"Registre_1","index":5,"n_rows":800,"n_cols":15,"rows_kept":800,"cut":false,"hidden":false,"merged":[[10,2,10,3],[0,0,0,1],[0,2,0,6],[1,2,1,3],[2,2,2,3],[3,2,3,3],[4,2,4,3],[5,2,5,3],[6,2,6,3],[7,2,7,3],[8,2,8,3],[9,2,9,3],[22,2,22,3],[11,2,11,3],[12,2,12,3],[13,2,13,3],[14,2,14,3],[15,2,15,3],[16,2,16,3],[17,2,17,3],[18,2,18,3],[19,2,19,3],[20,2,20,3],[21,2,21,3],[34,2,34,3],[23,2,23,3],[24,2,24,3],[25,2,25,3],[26,2,26,3],[27,2,27,3],[28,2,28,3],[29,2,29,3],[30,2,30,3],[31,2,31,3],[32,2,32,3],[33,2,33,3],[46,2,46,3],[35,2,35,3],[36,2,36,3],[37,2,37,3],[38,2,38,3],[39,2,39,3],[40,2,40,3],[41,2,41,3],[42,2,42,3],[43,2,43,3],[44,2,44,3],[45,2,45,3],[58,2,58,3],[47,2,47,3],[48,2,48,3],[49,2,49,3],[50,2,50,3],[51,2,51,3],[52,2,52,3],[53,2,53,3],[54,2,54,3],[55,2,55,3],[56,2,56,3],[57,2,57,3],[71,2,71,3],[72,2,72,3],[73,2,73,3],[74,2,74,3],[75,2,75,3],[70,2,70,3],[59,2,59,3],[60,2,60,3],[61,2,61,3],[62,2,62,3],[63,2,63,3],[64,2,64,3],[65,2,65,3],[66,2,66,3],[67,2,67,3],[68,2,68,3],[69,2,69,3],[83,2,83,3],[84,2,84,3],[85,2,85,3],[86,2,86,3],[87,2,87,3],[81,2,81,3],[82,2,82,3],[76,2,76,3],[77,2,77,3],[78,2,78,3],[79,2,79,3],[80,2,80,3],[93,2,93,3],[94,2,94,3],[95,2,95,3],[96,2,96,3],[97,2,97,3],[88,2,88,3],[89,2,89,3],[90,2,90,3],[91,2,91,3],[92,2,92,3],[103,2,103,3],[104,2,104,3],[105,2,105,3],[106,2,106,3],[107,2,107,3],[98,2,98,3],[99,2,99,3],[100,2,100,3],[101,2,101,3],[102,2,102,3],[113,2,113,3],[114,2,114,3],[115,2,115,3],[116,2,116,3],[117,2,117,3],[108,2,108,3],[109,2,109,3],[110,2,110,3],[111,2,111,3],[112,2,112,3],[123,2,123,3],[124,2,124,3],[125,2,125,3],[126,2,126,3],[127,2,127,3],[118,2,118,3],[119,2,119,3],[120,2,120,3],[121,2,121,3],[122,2,122,3],[133,2,133,3],[134,2,134,3],[135,2,135,3],[136,2,136,3],[137,2,137,3],[128,2,128,3],[129,2,129,3],[130,2,130,3],[131,2,131,3],[132,2,132,3],[143,2,143,3],[144,2,144,3],[145,2,145,3],[146,2,146,3],[147,2,147,3],[138,2,138,3],[139,2,139,3],[140,2,140,3],[141,2,141,3],[142,2,142,3],[153,2,153,3],[154,2,154,3],[155,2,155,3],[156,2,156,3],[157,2,157,3],[148,2,148,3],[149,2,149,3],[150,2,150,3],[151,2,151,3],[152,2,152,3],[163,2,163,3],[164,2,164,3],[165,2,165,3],[166,2,166,3],[167,2,167,3],[158,2,158,3],[159,2,159,3],[160,2,160,3],[161,2,161,3],[162,2,162,3],[173,2,173,3],[174,2,174,3],[175,2,175,3],[176,2,176,3],[177,2,177,3],[168,2,168,3],[169,2,169,3],[170,2,170,3],[171,2,171,3],[172,2,172,3],[183,2,183,3],[184,2,184,3],[185,2,185,3],[186,2,186,3],[187,2,187,3],[178,2,178,3],[179,2,179,3],[180,2,180,3],[181,2,181,3],[182,2,182,3],[193,2,193,3],[194,2,194,3],[195,2,195,3],[196,2,196,3],[197,2,197,3],[188,2,188,3],[189,2,189,3],[190,2,190,3],[191,2,191,3],[192,2,192,3],[203,2,203,3],[204,2,204,3],[205,2,205,3],[206,2,206,3],[207,2,207,3],[198,2,198,3],[199,2,199,3],[200,2,200,3],[201,2,201,3],[202,2,202,3],[213,2,213,3],[214,2,214,3],[215,2,215,3],[216,2,216,3],[217,2,217,3],[208,2,208,3],[209,2,209,3],[210,2,210,3],[211,2,211,3],[212,2,212,3],[223,2,223,3],[224,2,224,3],[225,2,225,3],[226,2,226,3],[227,2,227,3],[218,2,218,3],[219,2,219,3],[220,2,220,3],[221,2,221,3],[222,2,222,3],[233,2,233,3],[234,2,234,3],[235,2,235,3],[236,2,236,3],[237,2,237,3],[228,2,228,3],[229,2,229,3],[230,2,230,3],[231,2,231,3],[232,2,232,3],[243,2,243,3],[244,2,244,3],[245,2,245,3],[246,2,246,3],[247,2,247,3],[238,2,238,3],[239,2,239,3],[240,2,240,3],[241,2,241,3],[242,2,242,3],[253,2,253,3],[254,2,254,3],[255,2,255,3],[256,2,256,3],[257,2,257,3],[248,2,248,3],[249,2,249,3],[250,2,250,3],[251,2,251,3],[252,2,252,3],[263,2,263,3],[264,2,264,3],[265,2,265,3],[266,2,266,3],[267,2,267,3],[258,2,258,3],[259,2,259,3],[260,2,260,3],[261,2,261,3],[262,2,262,3],[273,2,273,3],[274,2,274,3],[275,2,275,3],[276,2,276,3],[277,2,277,3],[268,2,268,3],[269,2,269,3],[270,2,270,3],[271,2,271,3],[272,2,272,3],[283,2,283,3],[284,2,284,3],[285,2,285,3],[286,2,286,3],[287,2,287,3],[278,2,278,3],[279,2,279,3],[280,2,280,3],[281,2,281,3],[282,2,282,3],[293,2,293,3],[294,2,294,3],[295,2,295,3],[296,2,296,3],[297,2,297,3],[288,2,288,3],[289,2,289,3],[290,2,290,3],[291,2,291,3],[292,2,292,3],[303,2,303,3],[304,2,304,3],[305,2,305,3],[306,2,306,3],[307,2,307,3],[298,2,298,3],[299,2,299,3],[300,2,300,3],[301,2,301,3],[302,2,302,3],[313,2,313,3],[314,2,314,3],[315,2,315,3],[316,2,316,3],[317,2,317,3],[308,2,308,3],[309,2,309,3],[310,2,310,3],[311,2,311,3],[312,2,312,3],[323,2,323,3],[324,2,324,3],[325,2,325,3],[326,2,326,3],[327,2,327,3],[318,2,318,3],[319,2,319,3],[320,2,320,3],[321,2,321,3],[322,2,322,3],[333,2,333,3],[334,2,334,3],[335,2,335,3],[336,2,336,3],[337,2,337,3],[328,2,328,3],[329,2,329,3],[330,2,330,3],[331,2,331,3],[332,2,332,3],[343,2,343,3],[344,2,344,3],[345,2,345,3],[346,2,346,3],[347,2,347,3],[338,2,338,3],[339,2,339,3],[340,2,340,3],[341,2,341,3],[342,2,342,3],[353,2,353,3],[354,2,354,3],[355,2,355,3],[356,2,356,3],[357,2,357,3],[348,2,348,3],[349,2,349,3],[350,2,350,3],[351,2,351,3],[352,2,352,3],[363,2,363,3],[364,2,364,3],[365,2,365,3],[366,2,366,3],[367,2,367,3],[358,2,358,3],[359,2,359,3],[360,2,360,3],[361,2,361,3],[362,2,362,3],[373,2,373,3],[374,2,374,3],[375,2,375,3],[376,2,376,3],[377,2,377,3],[368,2,368,3],[369,2,369,3],[370,2,370,3],[371,2,371,3],[372,2,372,3],[383,2,383,3],[384,2,384,3],[385,2,385,3],[386,2,386,3],[387,2,387,3],[378,2,378,3],[379,2,379,3],[380,2,380,3],[381,2,381,3],[382,2,382,3],[393,2,393,3],[394,2,394,3],[395,2,395,3],[396,2,396,3],[397,2,397,3],[388,2,388,3],[389,2,389,3],[390,2,390,3],[391,2,391,3],[392,2,392,3],[403,2,403,3],[404,2,404,3],[405,2,405,3],[406,2,406,3],[407,2,407,3],[398,2,398,3],[399,2,399,3],[400,2,400,3],[401,2,401,3],[402,2,402,3],[413,2,413,3],[414,2,414,3],[415,2,415,3],[416,2,416,3],[417,2,417,3],[408,2,408,3],[409,2,409,3],[410,2,410,3],[411,2,411,3],[412,2,412,3],[423,2,423,3],[424,2,424,3],[425,2,425,3],[426,2,426,3],[427,2,427,3],[418,2,418,3],[419,2,419,3],[420,2,420,3],[421,2,421,3],[422,2,422,3],[433,2,433,3],[434,2,434,3],[435,2,435,3],[436,2,436,3],[437,2,437,3],[428,2,428,3],[429,2,429,3],[430,2,430,3],[431,2,431,3],[432,2,432,3],[443,2,443,3],[444,2,444,3],[445,2,445,3],[446,2,446,3],[447,2,447,3],[438,2,438,3],[439,2,439,3],[440,2,440,3],[441,2,441,3],[442,2,442,3],[453,2,453,3],[454,2,454,3],[455,2,455,3],[456,2,456,3],[457,2,457,3],[448,2,448,3],[449,2,449,3],[450,2,450,3],[451,2,451,3],[452,2,452,3],[463,2,463,3],[464,2,464,3],[465,2,465,3],[466,2,466,3],[467,2,467,3],[458,2,458,3],[459,2,459,3],[460,2,460,3],[461,2,461,3],[462,2,462,3],[473,2,473,3],[474,2,474,3],[475,2,475,3],[476,2,476,3],[477,2,477,3],[468,2,468,3],[469,2,469,3],[470,2,470,3],[471,2,471,3],[472,2,472,3],[483,2,483,3],[484,2,484,3],[485,2,485,3],[486,2,486,3],[487,2,487,3],[478,2,478,3],[479,2,479,3],[480,2,480,3],[481,2,481,3],[482,2,482,3],[493,2,493,3],[494,2,494,3],[495,2,495,3],[496,2,496,3],[497,2,497,3],[488,2,488,3],[489,2,489,3],[490,2,490,3],[491,2,491,3],[492,2,492,3],[503,2,503,3],[504,2,504,3],[505,2,505,3],[506,2,506,3],[507,2,507,3],[498,2,498,3],[499,2,499,3],[500,2,500,3],[501,2,501,3],[502,2,502,3],[513,2,513,3],[514,2,514,3],[515,2,515,3],[516,2,516,3],[517,2,517,3],[508,2,508,3],[509,2,509,3],[510,2,510,3],[511,2,511,3],[512,2,512,3],[523,2,523,3],[524,2,524,3],[525,2,525,3],[526,2,526,3],[527,2,527,3],[518,2,518,3],[519,2,519,3],[520,2,520,3],[521,2,521,3],[522,2,522,3],[533,2,533,3],[534,2,534,3],[535,2,535,3],[536,2,536,3],[537,2,537,3],[528,2,528,3],[529,2,529,3],[530,2,530,3],[531,2,531,3],[532,2,532,3],[543,2,543,3],[544,2,544,3],[545,2,545,3],[546,2,546,3],[547,2,547,3],[538,2,538,3],[539,2,539,3],[540,2,540,3],[541,2,541,3],[542,2,542,3],[553,2,553,3],[554,2,554,3],[555,2,555,3],[556,2,556,3],[557,2,557,3],[548,2,548,3],[549,2,549,3],[550,2,550,3],[551,2,551,3],[552,2,552,3],[563,2,563,3],[564,2,564,3],[565,2,565,3],[566,2,566,3],[567,2,567,3],[558,2,558,3],[559,2,559,3],[560,2,560,3],[561,2,561,3],[562,2,562,3],[573,2,573,3],[574,2,574,3],[575,2,575,3],[576,2,576,3],[577,2,577,3],[568,2,568,3],[569,2,569,3],[570,2,570,3],[571,2,571,3],[572,2,572,3],[583,2,583,3],[584,2,584,3],[585,2,585,3],[586,2,586,3],[587,2,587,3],[578,2,578,3],[579,2,579,3],[580,2,580,3],[581,2,581,3],[582,2,582,3],[593,2,593,3],[594,2,594,3],[595,2,595,3],[596,2,596,3],[597,2,597,3],[588,2,588,3],[589,2,589,3],[590,2,590,3],[591,2,591,3],[592,2,592,3],[603,2,603,3],[604,2,604,3],[605,2,605,3],[606,2,606,3],[607,2,607,3],[598,2,598,3],[599,2,599,3],[600,2,600,3],[601,2,601,3],[602,2,602,3],[613,2,613,3],[614,2,614,3],[615,2,615,3],[616,2,616,3],[617,2,617,3],[608,2,608,3],[609,2,609,3],[610,2,610,3],[611,2,611,3],[612,2,612,3],[623,2,623,3],[624,2,624,3],[625,2,625,3],[626,2,626,3],[627,2,627,3],[618,2,618,3],[619,2,619,3],[620,2,620,3],[621,2,621,3],[622,2,622,3],[633,2,633,3],[634,2,634,3],[635,2,635,3],[636,2,636,3],[637,2,637,3],[628,2,628,3],[629,2,629,3],[630,2,630,3],[631,2,631,3],[632,2,632,3],[643,2,643,3],[644,2,644,3],[645,2,645,3],[646,2,646,3],[647,2,647,3],[638,2,638,3],[639,2,639,3],[640,2,640,3],[641,2,641,3],[642,2,642,3],[653,2,653,3],[654,2,654,3],[655,2,655,3],[656,2,656,3],[657,2,657,3],[648,2,648,3],[649,2,649,3],[650,2,650,3],[651,2,651,3],[652,2,652,3],[663,2,663,3],[664,2,664,3],[665,2,665,3],[666,2,666,3],[667,2,667,3],[658,2,658,3],[659,2,659,3],[660,2,660,3],[661,2,661,3],[662,2,662,3],[673,2,673,3],[674,2,674,3],[675,2,675,3],[676,2,676,3],[677,2,677,3],[668,2,668,3],[669,2,669,3],[670,2,670,3],[671,2,671,3],[672,2,672,3],[683,2,683,3],[684,2,684,3],[685,2,685,3],[686,2,686,3],[687,2,687,3],[678,2,678,3],[679,2,679,3],[680,2,680,3],[681,2,681,3],[682,2,682,3],[693,2,693,3],[694,2,694,3],[695,2,695,3],[696,2,696,3],[697,2,697,3],[688,2,688,3],[689,2,689,3],[690,2,690,3],[691,2,691,3],[692,2,692,3],[703,2,703,3],[704,2,704,3],[705,2,705,3],[706,2,706,3],[707,2,707,3],[698,2,698,3],[699,2,699,3],[700,2,700,3],[701,2,701,3],[702,2,702,3],[713,2,713,3],[714,2,714,3],[715,2,715,3],[716,2,716,3],[717,2,717,3],[708,2,708,3],[709,2,709,3],[710,2,710,3],[711,2,711,3],[712,2,712,3],[723,2,723,3],[724,2,724,3],[725,2,725,3],[726,2,726,3],[727,2,727,3],[718,2,718,3],[719,2,719,3],[720,2,720,3],[721,2,721,3],[722,2,722,3],[733,2,733,3],[734,2,734,3],[735,2,735,3],[736,2,736,3],[737,2,737,3],[728,2,728,3],[729,2,729,3],[730,2,730,3],[731,2,731,3],[732,2,732,3],[743,2,743,3],[744,2,744,3],[745,2,745,3],[746,2,746,3],[747,2,747,3],[738,2,738,3],[739,2,739,3],[740,2,740,3],[741,2,741,3],[742,2,742,3],[753,2,753,3],[754,2,754,3],[755,2,755,3],[756,2,756,3],[757,2,757,3],[748,2,748,3],[749,2,749,3],[750,2,750,3],[751,2,751,3],[752,2,752,3],[763,2,763,3],[764,2,764,3],[765,2,765,3],[766,2,766,3],[767,2,767,3],[758,2,758,3],[759,2,759,3],[760,2,760,3],[761,2,761,3],[762,2,762,3],[773,2,773,3],[774,2,774,3],[775,2,775,3],[776,2,776,3],[777,2,777,3],[768,2,768,3],[769,2,769,3],[770,2,770,3],[771,2,771,3],[772,2,772,3],[783,2,783,3],[784,2,784,3],[785,2,785,3],[786,2,786,3],[787,2,787,3],[778,2,778,3],[779,2,779,3],[780,2,780,3],[781,2,781,3],[782,2,782,3],[798,2,798,3],[799,2,799,3],[793,2,793,3],[794,2,794,3],[795,2,795,3],[796,2,796,3],[797,2,797,3],[788,2,788,3],[789,2,789,3],[790,2,790,3],[791,2,791,3],[792,2,792,3]]}
[null,null,"REGISTRE DECHETS NON DANGEREUX\n((Arrêté du 29 février 2012 fixant le contenu des registres mentionnés aux articles R. 541-43 et R. 541-46 du code de l'environnement ))"]
["Date d'enlèvement","Nature du déchets","Quantité de déchets (en kg)",null,"Installation de destination (nom et adresse)","Transporteur ","Fiche d'intervention"]
["2018-01-02","TV",null,null,{"$f":"IF(B3=\"TV\",\"Véolia Nice Tri - Parc d'activité logistique\",IF(B3=\"DV\",\"Orédui Carros Compostage - ZI de la Grave\",IF(B3=\"GP\",\"La Gaude K3 Sita Sud - 5211 Rte de St Jeannet\",IF(B3=\"GS\",\"Véolia Nice Tri - 20 Ch du Saquier\",IF(B3=\"B\",\"SEAS La Glacière - 1019 Rte de la Grasse\",IF(B3=\"M\",\"Carros\",IF(B3=\"N\",\"Sofovar - 126 Av Louis Lépine - 83600 Fréjus\")))))))","v":"Véolia Nice Tri - Parc d'activité logistique"},{"$f":"IF(OR(B3=\"TV\",B3=\"DV\",B3=\"GS\",B3=\"GP\",B3=\"B\"),\"SUEZ\",IF(OR(B3=\"M\"),\"DERICHEBOURG\",IF(OR(B3=\"N\"),\"SOFOVAR\")))","v":"SUEZ"},"B0300473502"]
["2018-01-02","GS",null,null,{"$f":"IF(B4=\"TV\",\"Véolia Nice Tri - Parc d'activité logistique\",IF(B4=\"DV\",\"Orédui Carros Compostage - ZI de la Grave\",IF(B4=\"GP\",\"La Gaude K3 Sita Sud - 5211 Rte de St Jeannet\",IF(B4=\"GS\",\"Véolia Nice Tri - 20 Ch du Saquier\",IF(B4=\"B\",\"SEAS La Glacière - 1019 Rte de la Grasse\",IF(B4=\"M\",\"Carros\",IF(B4=\"N\",\"Sofovar - 126 Av Louis Lépine - 83600 Fréjus\")))))))","v":"Véolia Nice Tri - 20 Ch du Saquier"},{"$f":"IF(OR(B4=\"TV\",B4=\"DV\",B4=\"GS\",B4=\"GP\",B4=\"B\"),\"SUEZ\",IF(OR(B4=\"M\"),\"DERICHEBOURG\",IF(OR(B4=\"N\"),\"SOFOVAR\")))","v":"SUEZ"},"B0300472042",null,null,null,null,null,null,"Nature du \ndéchets","Abbréviation"]
["2018-01-02","B",1100,null,"SEAS La Glacière - 1019 Rte de la Grasse","SUEZ","B0300471874",null,null,null,null,null,null,"TOUT VENANT","TV"]
["2018-01-02","TV",1720,null,"Véolia Nice Tri - Parc d'activité logistique","SUEZ","B0300472374",null,null,null,null,null,null,"DECHETS VERTS","DV"]
["2018-01-02","M",null,null,"Carros","DERICHEBOURG",2461,null,null,null,null,null,null,"GRAVATS PROPRE","GP"]
["2018-01-02","DV",1060,null,"Orédui Carros Compostage - ZI de la Grave","SUEZ","B0300474375",null,null,null,null,null,null,"GRAVATS SALES","GS"]
["2018-01-02","DV",2900,null,"Orédui Carros Compostage - ZI de la Grave","SUEZ","B0300471805",null,null,null,null,null,null,"METAUX","M"]
["2018-01-02","DV",3280,null,"Orédui Carros Compostage - ZI de la Grave","SUEZ","B0300471912",null,null,null,null,null,null,"BOIS","B"]
["2018-01-02","B",1580,null,"SEAS La Glacière - 1019 Rte de la Grasse","SUEZ","B0300474376",null,null,null,null,null,null,"NEONS","N"]
["2018-01-02","DV",1060,null,"Orédui Carros Compostage - ZI de la Grave","SUEZ","B0300474375",null,null,null,null,null,null,"AMPOULES","A"]
["2018-01-02","B",2020,null,"SEAS La Glacière - 1019 Rte de la Grasse","SUEZ","B0300472004",null,null,null,null,null,null,"HUILES VIDANGE","HM"]
["2018-01-02","B",1780,null,"SEAS La Glacière - 1019 Rte de la Grasse","SUEZ","B0300471836",null,null,null,null,null,null,"HUILES VEGETALES","HV"]
["2018-01-02","GP",null,null,"La Gaude K3 Sita Sud - 5211 Rte de St Jeannet","SUEZ","B0300473471",null,null,null,null,null,null,"PILES","P"]
["2017-01-03","M",null,null,"Carros","DERICHEBOURG",2464,null,null,null,null,null,null,"PNEUS","PN"]
["2018-01-03","TV",null,null,"Véolia Nice Tri - Parc d'activité logistique","SUEZ","B0300472349",null,null,null,null,null,null,"CARTOUCHES","C"]
["2018-01-03","TV",null,null,"Véolia Nice Tri - Parc d'activité logistique","SUEZ","B0300472476"]
["2018-01-03","TV",null,null,"Véolia Nice Tri - Parc d'activité logistique","SUEZ","B0300472380"]
["2018-01-03","TV",null,null,"Véolia Nice Tri - Parc d'activité logistique","SUEZ","B0300474482"]
["2018-01-03","TV",null,null,"Véolia Nice Tri - Parc d'activité logistique","SUEZ","B0300474481"]
["2018-01-03","TV",null,null,"Véolia Nice Tri - Parc d'activité logistique","SUEZ","B0300474480"]
["2018-01-03","TV",null,null,"Véolia Nice Tri - Parc d'activité logistique","SUEZ","B0300474479"]
["2018-01-03","GS",null,null,"Véolia Nice Tri - 20 Ch du Saquier","SUEZ","B0300473737"]
["2018-01-03","GP",null,null,"La Gaude K3 Sita Sud - 5211 Rte de St Jeannet","SUEZ","B0300473508"]
["2018-01-03","GS",null,null,"Véolia Nice Tri - 20 Ch du Saquier","SUEZ","B0300472048"]
["2018-01-03","GP",null,null,"La Gaude K3 Sita Sud - 5211 Rte de St Jeannet","SUEZ","B0300473539"]
["2018-01-03","DV",980,null,"Orédui Carros Compostage - ZI de la Grave","SUEZ","B0300471918"]
["2018-01-03","TV",1340,null,"Véolia Nice Tri - Parc d'activité logistique","SUEZ","B0300473576"]
["2018-01-03","B",2240,null,"SEAS La Glacière - 1019 Rte de la Grasse","SUEZ","B0300471880"]
["2018-01-03","DV",640,null,"Orédui Carros Compostage - ZI de la Grave","SUEZ","B0300472125"]
["2018-01-03","B",1320,null,"SEAS La Glacière - 1019 Rte de la Grasse","SUEZ","B0300471842"]
["2018-01-03","B",1660,null,"SEAS La Glacière - 1019 Rte de la Grasse","SUEZ","B0300472010"]
["2018-01-03","B",1960,null,"SEAS La Glacière - 1019 Rte de la Grasse","SUEZ","B0300471811"]
["2018-01-04","M",null,null,"Carros","DERICHEBOURG",2468]
["2018-01-04","M",null,null,"Carros","DERICHEBOURG",2470]
["2018-01-04","B",1720,null,"SEAS La Glacière - 1019 Rte de la Grasse","SUEZ","B0300471848"]
["2018-01-04","DV",1220,null,"Orédui Carros Compostage - ZI de la Grave","SUEZ","B0300471817"]
["2018-01-04","DV",null,null,"Orédui Carros Compostage - ZI de la Grave","SUEZ","B0300474550"]
["2018-01-04","DV",1620,null,"Orédui Carros Compostage - ZI de la Grave","SUEZ","B0300471924"]
["2018-01-04","DV",820,null,"Orédui Carros Compostage - ZI de la Grave","SUEZ","B0300474555"]
["2018-01-04","B",1540,null,"SEAS La Glacière - 1019 Rte de la Grasse","SUEZ","B0300471886"]
["2018-01-04","TV",2340,null,"Véolia Nice Tri - Parc d'activité logistique","SUEZ","B0300473582"]
["2018-01-04","TV",1780,null,"Véolia Nice Tri - Parc d'activité logistique","SUEZ","B0300474515"]
["2018-01-04","TV",960,null,"Véolia Nice Tri - Parc d'activité logistique","SUEZ","B0300474512"]
["2018-01-04","B",2480,null,"SEAS La Glacière - 1019 Rte de la Grasse","SUEZ","B0300472016"]
["2018-01-04","TV",880,null,"Véolia Nice Tri - Parc d'activité logistique","SUEZ","B0300474514"]
["2018-01-04","TV",920,null,"Véolia Nice Tri - Parc d'activité logistique","SUEZ","B0300472482"]
["2018-01-04","TV",1580,null,"Véolia Nice Tri - Parc d'activité logistique","SUEZ","B0300472386"]
["2018-01-04","TV",1560,null,"Véolia Nice Tri - Parc d'activité logistique","SUEZ","B0300472355"]
["2018-01-04","GS",null,null,"Véolia Nice Tri - 20 Ch du Saquier","SUEZ","B0300472054"]
["2018-01-04","GP",null,null,"La Gaude K3 Sita Sud - 5211 Rte de St Jeannet","SUEZ","B0300473483"]
["2018-01-04","GP",null,null,"La Gaude K3 Sita Sud - 5211 Rte de St Jeannet","SUEZ","B0300473514"]
["2018-01-05","M",null,null,"Carros","DERICHEBOURG",2474]
["2018-01-05","GS",null,null,"Véolia Nice Tri - 20 Ch du Saquier","SUEZ","B0300472061"]
["2018-01-05","DV",null,null,"Orédui Carros Compostage - ZI de la Grave","SUEZ","B0300472132"]
["2018-01-05","B",null,null,"SEAS La Glacière - 1019 Rte de la Grasse","SUEZ","B0300471893"]
["2018-01-05","DV",null,null,"Orédui Carros Compostage - ZI de la Grave","SUEZ","B0300471824"]
["2018-01-05","B",null,null,"SEAS La Glacière - 1019 Rte de la Grasse","SUEZ","B0300472023"]
["2018-01-05","B",null,null,"SEAS La Glacière - 1019 Rte de la Grasse","SUEZ","B0300471855"]
["2018-01-05","GP",null,null,"La Gaude K3 Sita Sud - 5211 Rte de St Jeannet","SUEZ","B0300473521"]
["2018-01-05","GS",null,null,"Véolia Nice Tri - 20 Ch du Saquier","SUEZ","B0300473750"]
["2018-01-05","GP",null,null,"La Gaude K3 Sita Sud - 5211 Rte de St Jeannet","SUEZ","B0300473552"]
["2018-01-05","GP",null,null,"La Gaude K3 Sita Sud - 5211 Rte de St Jeannet","SUEZ","B0300473490"]
["2018-01-05","TV",null,null,"Véolia Nice Tri - Parc d'activité logistique","SUEZ","B0300472362"]
["2018-01-05","TV",1820,null,"Véolia Nice Tri - Parc d'activité logistique","SUEZ","B0300472393"]
["2018-01-05","TV",1280,null,"Véolia Nice Tri - Parc d'activité logistique","SUEZ","B0300472489"]
["2018-01-05","TV",1260,null,{"$f":"IF(B68=\"TV\",\"Véolia Nice Tri - Parc d'activité logistique\",IF(B68=\"DV\",\"Orédui Carros Compostage - ZI de la Grave\",IF(B68=\"GP\",\"La Gaude K3 Sita Sud - 5211 Rte de St Jeannet\",IF(B68=\"GS\",\"Véolia Nice Tri - 20 Ch du Saquier\",IF(B68=\"B\",\"SEAS La Glacière - 1019 Rte de la Grasse\",IF(B68=\"M\",\"Carros\",IF(B68=\"N\",\"Sofovar - 126 Av Louis Lépine - 83600 Fréjus\")))))))","v":"Véolia Nice Tri - Parc d'activité logistique"},{"$f":"IF(OR(B68=\"TV\",B68=\"DV\",B68=\"GS\",B68=\"GP\",B68=\"B\"),\"SUEZ\",IF(OR(B68=\"M\"),\"DERICHEBOURG\",IF(OR(B68=\"N\"),\"SOFOVAR\")))","v":"SUEZ"},"B0300474622"]
["2018-01-05","TV",1600,null,"Véolia Nice Tri - Parc d'activité logistique","SUEZ","B0300474623"]
["2018-01-05","TV",3580,null,"Véolia Nice Tri - Parc d'activité logistique","SUEZ","B0300474624"]
["2018-01-06","M",null,null,"Carros","DERICHEBOURG",2477]
["2018-01-06","TV",2440,null,"Véolia Nice Tri - Parc d'activité logistique","SUEZ","B0300472181"]
["2018-01-06","TV",1040,null,"Véolia Nice Tri - Parc d'activité logistique","SUEZ","B0300474663"]
["2018-01-06","TV",800,null,"Véolia Nice Tri - Parc d'activité logistique","SUEZ","B0300474662"]
["2018-01-06","TV",1400,null,"Véolia Nice Tri - Parc d'activité logistique","SUEZ","B0300474664"]
["2018-01-06","TV",2520,null,"Véolia Nice Tri - Parc d'activité logistique","SUEZ","B0300472167"]
["2018-01-06","TV",1640,null,"Véolia Nice Tri - Parc d'activité logistique","SUEZ","B0300472188"]
["2018-01-06","TV",1560,null,"Véolia Nice Tri - Parc d'activité logistique","SUEZ","B0300472195"]
["2018-01-06","M",null,null,"Carros","DERICHEBOURG",2478]
["2018-01-06","GP",null,null,"La Gaude K3 Sita Sud - 5211 Rte de St Jeannet","SUEZ","B0300472699"]
["2018-01-06","B",null,null,"SEAS La Glacière - 1019 Rte de la Grasse","SUEZ","B0300472223"]
["2018-01-06","DV",null,null,"Orédui Carros Compostage - ZI de la Grave","SUEZ","B0300472209"]
["2018-01-06","GS",null,null,"Véolia Nice Tri - 20 Ch du Saquier","SUEZ","B0300473757"]
[null,null,null,null,{"$f":"IF(B84=\"TV\",\"Véolia Nice Tri - Parc d'activité logistique\",IF(B84=\"DV\",\"Orédui Carros Compostage - ZI de la Grave\",IF(B84=\"GP\",\"La Gaude K3 Sita Sud - 5211 Rte de St Jeannet\",IF(B84=\"GS\",\"Véolia Nice Tri - 20 Ch du Saquier\",IF(B84=\"B\",\"SEAS La Glacière - 1019 Rte de la Grasse\",IF(B84=\"M\",\"Carros\",IF(B84=\"N\",\"Sofovar - 126 Av Louis Lépine - 83600 Fréjus\")))))))","v":false},{"$f":"IF(OR(B84=\"TV\",B84=\"DV\",B84=\"GS\",B84=\"GP\",B84=\"B\"),\"SUEZ\",IF(OR(B84=\"M\"),\"DERICHEBOURG\",IF(OR(B84=\"N\"),\"SOFOVAR\")))","v":false}]
[null,null,null,null,{"$f":"IF(B85=\"TV\",\"Véolia Nice Tri - Parc d'activité logistique\",IF(B85=\"DV\",\"Orédui Carros Compostage - ZI de la Grave\",IF(B85=\"GP\",\"La Gaude K3 Sita Sud - 5211 Rte de St Jeannet\",IF(B85=\"GS\",\"Véolia Nice Tri - 20 Ch du Saquier\",IF(B85=\"B\",\"SEAS La Glacière - 1019 Rte de la Grasse\",IF(B85=\"M\",\"Carros\",IF(B85=\"N\",\"Sofovar - 126 Av Louis Lépine - 83600 Fréjus\")))))))","v":false},{"$f":"IF(OR(B85=\"TV\",B85=\"DV\",B85=\"GS\",B85=\"GP\",B85=\"B\"),\"SUEZ\",IF(OR(B85=\"M\"),\"DERICHEBOURG\",IF(OR(B85=\"N\"),\"SOFOVAR\")))","v":false}]
[null,null,null,null,false,false]
[null,null,null,null,false,false]
[null,null,null,null,false,false]
[null,null,null,null,false,false]
[null,null,null,null,false,false]
[null,null,null,null,false,false]
[null,null,null,null,false,false]
[null,null,null,null,false,false]
[null,null,null,null,false,false]
[null,null,null,null,false,false]
[null,null,null,null,false,false]
[null,null,null,null,false,false]
[null,null,null,null,false,false]
[null,null,null,null,false,false]
[null,null,null,null,false,false]
[null,null,null,null,false,false]
[null,null,null,null,false,false]
[null,null,null,null,false,false]
[null,null,null,null,false,false]
[null,null,null,null,false,false]
[null,null,null,null,false,false]
[null,null,null,null,false,false]
[null,null,null,null,false,false]
[null,null,null,null,false,false]
[null,null,null,null,false,false]
[null,null,null,null,false,false]
[null,null,null,null,false,false]
[null,null,null,null,false,false]
[null,null,null,null,false,false]
[null,null,null,null,false,false]
[null,null,null,null,false,false]
[null,null,null,null,false,false]
[null,null,null,null,false,false]
[null,null,null,null,false,false]
[null,null,null,null,false,false]
[null,null,null,null,false,false]
[null,null,null,null,false,false]
[null,null,null,null,false,false]
[null,null,null,null,false,false]
[null,null,null,null,false,false]
[null,null,null,null,false,false]
[null,null,null,null,false,false]
[null,null,null,null,false,false]
[null,null,null,null,false,false]
[null,null,null,null,false,false]
[null,null,null,null,false,false]
[null,null,null,null,false,false]
[null,null,null,null,false,false]
[null,null,null,null,false,false]
[null,null,null,null,false,false]
[null,null,null,null,false,false]
[null,null,null,null,false,false]
[null,null,null,null,false,false]
[null,null,null,null,false,false]
[null,null,null,null,false,false]
[null,null,null,null,false,false]
[null,null,null,null,false,false]
[null,null,null,null,false,false]
[null,null,null,null,false,false]
[null,null,null,null,false,false]
[null,null,null,null,false,false]
[null,null,null,null,false,false]
[null,null,null,null,false,false]
[null,null,null,null,{"$f":"IF(B149=\"TV\",\"Véolia Nice Tri - Parc d'activité logistique\",IF(B149=\"DV\",\"Orédui Carros Compostage - ZI de la Grave\",IF(B149=\"GP\",\"La Gaude K3 Sita Sud - 5211 Rte de St Jeannet\",IF(B149=\"GS\",\"Véolia Nice Tri - 20 Ch du Saquier\",IF(B149=\"B\",\"SEAS La Glacière - 1019 Rte de la Grasse\",IF(B149=\"M\",\"Carros\",IF(B149=\"N\",\"Sofovar - 126 Av Louis Lépine - 83600 Fréjus\")))))))","v":false},{"$f":"IF(OR(B149=\"TV\",B149=\"DV\",B149=\"GS\",B149=\"GP\",B149=\"B\"),\"SUEZ\",IF(OR(B149=\"M\"),\"DERICHEBOURG\",IF(OR(B149=\"N\"),\"SOFOVAR\")))","v":false}]
[null,null,null,null,false,false]
[null,null,null,null,false,false]
[null,null,null,null,false,false]
[null,null,null,null,false,false]
[null,null,null,null,false,false]
[null,null,null,null,false,false]
[null,null,null,null,false,false]
[null,null,null,null,false,false]
[null,null,null,null,false,false]
[null,null,null,null,false,false]
[null,null,null,null,false,false]
[null,null,null,null,false,false]
[null,null,null,null,false,false]
[null,null,null,null,false,false]
[null,null,null,null,false,false]
[null,null,null,null,false,false]
[null,null,null,null,false,false]
[null,null,null,null,false,false]
[null,null,null,null,false,false]
[null,null,null,null,false,false]
[null,null,null,null,false,false]
[null,null,null,null,false,false]
[null,null,null,null,false,false]
[null,null,null,null,false,false]
[null,null,null,null,false,false]
[null,null,null,null,false,false]
[null,null,null,null,false,false]
[null,null,null,null,false,false]
[null,null,null,null,false,false]
[null,null,null,null,false,false]
[null,null,null,null,false,false]
[null,null,null,null,false,false]
[null,null,null,null,false,false]
[null,null,null,null,false,false]
[null,null,null,null,false,false]
[null,null,null,null,false,false]
[null,null,null,null,false,false]
[null,null,null,null,false,false]
[null,null,null,null,false,false]
[null,null,null,null,false,false]
[null,null,null,null,false,false]
[null,null,null,null,false,false]
[null,null,null,null,false,false]
[null,null,null,null,false,false]
[null,null,null,null,false,false]
[null,null,null,null,false,false]
[null,null,null,null,false,false]
[null,null,null,null,false,false]
[null,null,null,null,false,false]
[null,null,null,null,false,false]
[null,null,null,null,false,false]
[null,null,null,null,false,false]
[null,null,null,null,false,false]
[null,null,null,null,false,false]
[null,null,null,null,false,false]
[null,null,null,null,false,false]
[null,null,null,null,false,false]
[null,null,null,null,false,false]
[null,null,null,null,false,false]
[null,null,null,null,false,false]
[null,null,null,null,false,false]
[null,null,null,null,false,false]
[null,null,null,null,false,false]
[null,null,null,null,{"$f":"IF(B213=\"TV\",\"Véolia Nice Tri - Parc d'activité logistique\",IF(B213=\"DV\",\"Orédui Carros Compostage - ZI de la Grave\",IF(B213=\"GP\",\"La Gaude K3 Sita Sud - 5211 Rte de St Jeannet\",IF(B213=\"GS\",\"Véolia Nice Tri - 20 Ch du Saquier\",IF(B213=\"B\",\"SEAS La Glacière - 1019 Rte de la Grasse\",IF(B213=\"M\",\"Carros\",IF(B213=\"N\",\"Sofovar - 126 Av Louis Lépine - 83600 Fréjus\")))))))","v":false},{"$f":"IF(OR(B213=\"TV\",B213=\"DV\",B213=\"GS\",B213=\"GP\",B213=\"B\"),\"SUEZ\",IF(OR(B213=\"M\"),\"DERICHEBOURG\",IF(OR(B213=\"N\"),\"SOFOVAR\")))","v":false}]
[null,null,null,null,false,false]
[null,null,null,null,false,false]
[null,null,null,null,false,false]
[null,null,null,null,false,false]
[null,null,null,null,false,false]
[null,null,null,null,false,false]
[null,null,null,null,false,false]
[null,null,null,null,false,false]
[null,null,null,null,false,false]
[null,null,null,null,false,false]
[null,null,null,null,false,false]
[null,null,null,null,false,false]
[null,null,null,null,false,false]
[null,null,null,null,false,false]
[null,null,null,null,false,false]
[null,null,null,null,false,false]
[null,null,null,null,false,false]
[null,null,null,null,false,false]
[null,null,null,null,false,false]
[null,null,null,null,false,false]
[null,null,null,null,false,false]
[null,null,null,null,false,false]
[null,null,null,null,false,false]
[null,null,null,null,false,false]
[null,null,null,null,false,false]
[null,null,null,null,false,false]
[null,null,null,null,false,false]
[null,null,null,null,false,false]
[null,null,null,null,false,false]
[null,null,null,null,false,false]
[null,null,null,null,false,false]
[null,null,null,null,false,false]
[null,null,null,null,false,false]
[null,null,null,null,false,false]
[null,null,null,null,false,false]
[null,null,null,null,false,false]
[null,null,null,null,false,false]
[null,null,null,null,false,false]
[null,null,null,null,false,false]
[null,null,null,null,false,false]
[null,null,null,null,false,false]
[null,null,null,null,false,false]
[null,null,null,null,false,false]
[null,null,null,null,false,false]
[null,null,null,null,false,false]
[null,null,null,null,false,false]
[null,null,null,null,false,false]
[null,null,null,null,false,false]
[null,null,null,null,false,false]
[null,null,null,null,false,false]
[null,null,null,null,false,false]
[null,null,null,null,false,false]
[null,null,null,null,false,false]
[null,null,null,null,false,false]
[null,null,null,null,false,false]
[null,null,null,null,false,false]
[null,null,null,null,false,false]
[null,null,null,null,false,false]
[null,null,null,null,false,false]
[null,null,null,null,false,false]
[null,null,null,null,false,false]
[null,null,null,null,false,false]
[null,null,null,null,false,false]
[null,null,null,null,{"$f":"IF(B277=\"TV\",\"Véolia Nice Tri - Parc d'activité logistique\",IF(B277=\"DV\",\"Orédui Carros Compostage - ZI de la Grave\",IF(B277=\"GP\",\"La Gaude K3 Sita Sud - 5211 Rte de St Jeannet\",IF(B277=\"GS\",\"Véolia Nice Tri - 20 Ch du Saquier\",IF(B277=\"B\",\"SEAS La Glacière - 1019 Rte de la Grasse\",IF(B277=\"M\",\"Carros\",IF(B277=\"N\",\"Sofovar - 126 Av Louis Lépine - 83600 Fréjus\")))))))","v":false},{"$f":"IF(OR(B277=\"TV\",B277=\"DV\",B277=\"GS\",B277=\"GP\",B277=\"B\"),\"SUEZ\",IF(OR(B277=\"M\"),\"DERICHEBOURG\",IF(OR(B277=\"N\"),\"SOFOVAR\")))","v":false}]
[null,null,null,null,false,false]
[null,null,null,null,false,false]
[null,null,null,null,false,false]
[null,null,null,null,false,false]
[null,null,null,null,false,false]
[null,null,null,null,false,false]
[null,null,null,null,false,false]
[null,null,null,null,false,false]
[null,null,null,null,false,false]
[null,null,null,null,false,false]
[null,null,null,null,false,false]
[null,null,null,null,false,false]
[null,null,null,null,false,false]
[null,null,null,null,false,false]
[null,null,null,null,false,false]
[null,null,null,null,false,false]
[null,null,null,null,false,false]
[null,null,null,null,false,false]
[null,null,null,null,false,false]
[null,null,null,null,false,false]
[null,null,null,null,false,false]
[null,null,null,null,false,false]
[null,null,null,null,false,false]
[null,null,null,null,false,false]
[null,null,null,null,false,false]
[null,null,null,null,false,false]
[null,null,null,null,false,false]
[null,null,null,null,false,false]
[null,null,null,null,false,false]
[null,null,null,null,false,false]
[null,null,null,null,false,false]
[null,null,null,null,false,false]
[null,null,null,null,false,false]
[null,null,null,null,false,false]
[null,null,null,null,false,false]
[null,null,null,null,false,false]
[null,null,null,null,false,false]
[null,null,null,null,false,false]
[null,null,null,null,false,false]
[null,null,null,null,false,false]
[null,null,null,null,false,false]
[null,null,null,null,false,false]
[null,null,null,null,false,false]
[null,null,null,null,false,false]
[null,null,null,null,false,false]
[null,null,null,null,false,false]
[null,null,null,null,false,false]
[null,null,null,null,false,false]
[null,null,null,null,false,false]
[null,null,null,null,false,false]
[null,null,null,null,false,false]
[null,null,null,null,false,false]
[null,null,null,null,false,false]
[null,null,null,null,false,false]
[null,null,null,null,false,false]
[null,null,null,null,false,false]
[null,null,null,null,false,false]
[null,null,null,null,false,false]
[null,null,null,null,false,false]
[null,null,null,null,false,false]
[null,null,null,null,false,false]
[null,null,null,null,false,false]
[null,null,null,null,false,false]
[null,null,null,null,{"$f":"IF(B341=\"TV\",\"Véolia Nice Tri - Parc d'activité logistique\",IF(B341=\"DV\",\"Orédui Carros Compostage - ZI de la Grave\",IF(B341=\"GP\",\"La Gaude K3 Sita Sud - 5211 Rte de St Jeannet\",IF(B341=\"GS\",\"Véolia Nice Tri - 20 Ch du Saquier\",IF(B341=\"B\",\"SEAS La Glacière - 1019 Rte de la Grasse\",IF(B341=\"M\",\"Carros\",IF(B341=\"N\",\"Sofovar - 126 Av Louis Lépine - 83600 Fréjus\")))))))","v":false},{"$f":"IF(OR(B341=\"TV\",B341=\"DV\",B341=\"GS\",B341=\"GP\",B341=\"B\"),\"SUEZ\",IF(OR(B341=\"M\"),\"DERICHEBOURG\",IF(OR(B341=\"N\"),\"SOFOVAR\")))","v":false}]
[null,null,null,null,false,false]
[null,null,null,null,false,false]
[null,null,null,null,false,false]
[null,null,null,null,false,false]
[null,null,null,null,false,false]
[null,null,null,null,false,false]
[null,null,null,null,false,false]
[null,null,null,null,false,false]
[null,null,null,null,false,false]
[null,null,null,null,false,false]
[null,null,null,null,false,false]
[null,null,null,null,false,false]
[null,null,null,null,false,false]
[null,null,null,null,false,false]
[null,null,null,null,false,false]
[null,null,null,null,false,false]
[null,null,null,null,false,false]
[null,null,null,null,false,false]
[null,null,null,null,false,false]
[null,null,null,null,false,false]
[null,null,null,null,false,false]
[null,null,null,null,false,false]
[null,null,null,null,false,false]
[null,null,null,null,false,false]
[null,null,null,null,false,false]
[null,null,null,null,false,false]
[null,null,null,null,false,false]
[null,null,null,null,false,false]
[null,null,null,null,false,false]
[null,null,null,null,false,false]
[null,null,null,null,false,false]
[null,null,null,null,false,false]
[null,null,null,null,false,false]
[null,null,null,null,false,false]
[null,null,null,null,false,false]
[null,null,null,null,false,false]
[null,null,null,null,false,false]
[null,null,null,null,false,false]
[null,null,null,null,false,false]
[null,null,null,null,false,false]
[null,null,null,null,false,false]
[null,null,null,null,false,false]
[null,null,null,null,false,false]
[null,null,null,null,false,false]
[null,null,null,null,false,false]
[null,null,null,null,false,false]
[null,null,null,null,false,false]
[null,null,null,null,false,false]
[null,null,null,null,false,false]
[null,null,null,null,false,false]
[null,null,null,null,false,false]
[null,null,null,null,false,false]
[null,null,null,null,false,false]
[null,null,null,null,false,false]
[null,null,null,null,false,false]
[null,null,null,null,false,false]
[null,null,null,null,false,false]
[null,null,null,null,false,false]
[null,null,null,null,false,false]
[null,null,null,null,false,false]
[null,null,null,null,false,false]
[null,null,null,null,false,false]
[null,null,null,null,false,false]
[null,null,null,null,{"$f":"IF(B405=\"TV\",\"Véolia Nice Tri - Parc d'activité logistique\",IF(B405=\"DV\",\"Orédui Carros Compostage - ZI de la Grave\",IF(B405=\"GP\",\"La Gaude K3 Sita Sud - 5211 Rte de St Jeannet\",IF(B405=\"GS\",\"Véolia Nice Tri - 20 Ch du Saquier\",IF(B405=\"B\",\"SEAS La Glacière - 1019 Rte de la Grasse\",IF(B405=\"M\",\"Carros\",IF(B405=\"N\",\"Sofovar - 126 Av Louis Lépine - 83600 Fréjus\")))))))","v":false},{"$f":"IF(OR(B405=\"TV\",B405=\"DV\",B405=\"GS\",B405=\"GP\",B405=\"B\"),\"SUEZ\",IF(OR(B405=\"M\"),\"DERICHEBOURG\",IF(OR(B405=\"N\"),\"SOFOVAR\")))","v":false}]
[null,null,null,null,false,false]
[null,null,null,null,false,false]
[null,null,null,null,false,false]
[null,null,null,null,false,false]
[null,null,null,null,false,false]
[null,null,null,null,false,false]
[null,null,null,null,false,false]
[null,null,null,null,false,false]
[null,null,null,null,false,false]
[null,null,null,null,false,false]
[null,null,null,null,false,false]
[null,null,null,null,false,false]
[null,null,null,null,false,false]
[null,null,null,null,false,false]
[null,null,null,null,false,false]
[null,null,null,null,false,false]
[null,null,null,null,false,false]
[null,null,null,null,false,false]
[null,null,null,null,false,false]
[null,null,null,null,false,false]
[null,null,null,null,false,false]
[null,null,null,null,false,false]
[null,null,null,null,false,false]
[null,null,null,null,false,false]
[null,null,null,null,false,false]
[null,null,null,null,false,false]
[null,null,null,null,false,false]
[null,null,null,null,false,false]
[null,null,null,null,false,false]
[null,null,null,null,false,false]
[null,null,null,null,false,false]
[null,null,null,null,false,false]
[null,null,null,null,false,false]
[null,null,null,null,false,false]
[null,null,null,null,false,false]
[null,null,null,null,false,false]
[null,null,null,null,false,false]
[null,null,null,null,false,false]
[null,null,null,null,false,false]
[null,null,null,null,false,false]
[null,null,null,null,false,false]
[null,null,null,null,false,false]
[null,null,null,null,false,false]
[null,null,null,null,false,false]
[null,null,null,null,false,false]
[null,null,null,null,false,false]
[null,null,null,null,false,false]
[null,null,null,null,false,false]
[null,null,null,null,false,false]
[null,null,null,null,false,false]
[null,null,null,null,false,false]
[null,null,null,null,false,false]
[null,null,null,null,false,false]
[null,null,null,null,false,false]
[null,null,null,null,false,false]
[null,null,null,null,false,false]
[null,null,null,null,false,false]
[null,null,null,null,false,false]
[null,null,null,null,false,false]
[null,null,null,null,false,false]
[null,null,null,null,false,false]
[null,null,null,null,false,false]
[null,null,null,null,false,false]
[null,null,null,null,{"$f":"IF(B469=\"TV\",\"Véolia Nice Tri - Parc d'activité logistique\",IF(B469=\"DV\",\"Orédui Carros Compostage - ZI de la Grave\",IF(B469=\"GP\",\"La Gaude K3 Sita Sud - 5211 Rte de St Jeannet\",IF(B469=\"GS\",\"Véolia Nice Tri - 20 Ch du Saquier\",IF(B469=\"B\",\"SEAS La Glacière - 1019 Rte de la Grasse\",IF(B469=\"M\",\"Carros\",IF(B469=\"N\",\"Sofovar - 126 Av Louis Lépine - 83600 Fréjus\")))))))","v":false},{"$f":"IF(OR(B469=\"TV\",B469=\"DV\",B469=\"GS\",B469=\"GP\",B469=\"B\"),\"SUEZ\",IF(OR(B469=\"M\"),\"DERICHEBOURG\",IF(OR(B469=\"N\"),\"SOFOVAR\")))","v":false}]
[null,null,null,null,false,false]
[null,null,null,null,false,false]
[null,null,null,null,false,false]
[null,null,null,null,false,false]
[null,null,null,null,false,false]
[null,null,null,null,false,false]
[null,null,null,null,false,false]
[null,null,null,null,false,false]
[null,null,null,null,false,false]
[null,null,null,null,false,false]
[null,null,null,null,false,false]
[null,null,null,null,false,false]
[null,null,null,null,false,false]
[null,null,null,null,false,false]
[null,null,null,null,false,false]
[null,null,null,null,false,false]
[null,null,null,null,false,false]
[null,null,null,null,false,false]
[null,null,null,null,false,false]
[null,null,null,null,false,false]
[null,null,null,null,false,false]
[null,null,null,null,false,false]
[null,null,null,null,false,false]
[null,null,null,null,false,false]
[null,null,null,null,false,false]
[null,null,null,null,false,false]
[null,null,null,null,false,false]
[null,null,null,null,false,false]
[null,null,null,null,false,false]
[null,null,null,null,false,false]
[null,null,null,null,false,false]
[null,null,null,null,false,false]
[null,null,null,null,false,false]
[null,null,null,null,false,false]
[null,null,null,null,false,false]
[null,null,null,null,false,false]
[null,null,null,null,false,false]
[null,null,null,null,false,false]
[null,null,null,null,false,false]
[null,null,null,null,false,false]
[null,null,null,null,false,false]
[null,null,null,null,false,false]
[null,null,null,null,false,false]
[null,null,null,null,false,false]
[null,null,null,null,false,false]
[null,null,null,null,false,false]
[null,null,null,null,false,false]
[null,null,null,null,false,false]
[null,null,null,null,false,false]
[null,null,null,null,false,false]
[null,null,null,null,false,false]
[null,null,null,null,false,false]
[null,null,null,null,false,false]
[null,null,null,null,false,false]
[null,null,null,null,false,false]
[null,null,null,null,false,false]
[null,null,null,null,false,false]
[null,null,null,null,false,false]
[null,null,null,null,false,false]
[null,null,null,null,false,false]
[null,null,null,null,false,false]
[null,null,null,null,false,false]
[null,null,null,null,false,false]
[null,null,null,null,{"$f":"IF(B533=\"TV\",\"Véolia Nice Tri - Parc d'activité logistique\",IF(B533=\"DV\",\"Orédui Carros Compostage - ZI de la Grave\",IF(B533=\"GP\",\"La Gaude K3 Sita Sud - 5211 Rte de St Jeannet\",IF(B533=\"GS\",\"Véolia Nice Tri - 20 Ch du Saquier\",IF(B533=\"B\",\"SEAS La Glacière - 1019 Rte de la Grasse\",IF(B533=\"M\",\"Carros\",IF(B533=\"N\",\"Sofovar - 126 Av Louis Lépine - 83600 Fréjus\")))))))","v":false},{"$f":"IF(OR(B533=\"TV\",B533=\"DV\",B533=\"GS\",B533=\"GP\",B533=\"B\"),\"SUEZ\",IF(OR(B533=\"M\"),\"DERICHEBOURG\",IF(OR(B533=\"N\"),\"SOFOVAR\")))","v":false}]
[null,null,null,null,false,false]
[null,null,null,null,false,false]
[null,null,null,null,false,false]
[null,null,null,null,false,false]
[null,null,null,null,false,false]
[null,null,null,null,false,false]
[null,null,null,null,false,false]
[null,null,null,null,false,false]
[null,null,null,null,false,false]
[null,null,null,null,false,false]
[null,null,null,null,false,false]
[null,null,null,null,false,false]
[null,null,null,null,false,false]
[null,null,null,null,false,false]
[null,null,null,null,false,false]
[null,null,null,null,false,false]
[null,null,null,null,false,false]
[null,null,null,null,false,false]
[null,null,null,null,false,false]
[null,null,null,null,false,false]
[null,null,null,null,false,false]
[null,null,null,null,false,false]
[null,null,null,null,false,false]
[null,null,null,null,false,false]
[null,null,null,null,false,false]
[null,null,null,null,false,false]
[null,null,null,null,false,false]
[null,null,null,null,false,false]
[null,null,null,null,false,false]
[null,null,null,null,false,false]
[null,null,null,null,false,false]
[null,null,null,null,false,false]
[null,null,null,null,false,false]
[null,null,null,null,false,false]
[null,null,null,null,false,false]
[null,null,null,null,false,false]
[null,null,null,null,false,false]
[null,null,null,null,false,false]
[null,null,null,null,false,false]
[null,null,null,null,false,false]
[null,null,null,null,false,false]
[null,null,null,null,false,false]
[null,null,null,null,false,false]
[null,null,null,null,false,false]
[null,null,null,null,false,false]
[null,null,null,null,false,false]
[null,null,null,null,false,false]
[null,null,null,null,false,false]
[null,null,null,null,false,false]
[null,null,null,null,false,false]
[null,null,null,null,false,false]
[null,null,null,null,false,false]
[null,null,null,null,false,false]
[null,null,null,null,false,false]
[null,null,null,null,false,false]
[null,null,null,null,false,false]
[null,null,null,null,false,false]
[null,null,null,null,false,false]
[null,null,null,null,false,false]
[null,null,null,null,false,false]
[null,null,null,null,false,false]
[null,null,null,null,false,false]
[null,null,null,null,false,false]
[null,null,null,null,{"$f":"IF(B597=\"TV\",\"Véolia Nice Tri - Parc d'activité logistique\",IF(B597=\"DV\",\"Orédui Carros Compostage - ZI de la Grave\",IF(B597=\"GP\",\"La Gaude K3 Sita Sud - 5211 Rte de St Jeannet\",IF(B597=\"GS\",\"Véolia Nice Tri - 20 Ch du Saquier\",IF(B597=\"B\",\"SEAS La Glacière - 1019 Rte de la Grasse\",IF(B597=\"M\",\"Carros\",IF(B597=\"N\",\"Sofovar - 126 Av Louis Lépine - 83600 Fréjus\")))))))","v":false},{"$f":"IF(OR(B597=\"TV\",B597=\"DV\",B597=\"GS\",B597=\"GP\",B597=\"B\"),\"SUEZ\",IF(OR(B597=\"M\"),\"DERICHEBOURG\",IF(OR(B597=\"N\"),\"SOFOVAR\")))","v":false}]
[null,null,null,null,false,false]
[null,null,null,null,false,false]
[null,null,null,null,false,false]
[null,null,null,null,false,false]
[null,null,null,null,false,false]
[null,null,null,null,false,false]
[null,null,null,null,false,false]
[null,null,null,null,false,false]
[null,null,null,null,false,false]
[null,null,null,null,false,false]
[null,null,null,null,false,false]
[null,null,null,null,false,false]
[null,null,null,null,false,false]
[null,null,null,null,false,false]
[null,null,null,null,false,false]
[null,null,null,null,false,false]
[null,null,null,null,false,false]
[null,null,null,null,false,false]
[null,null,null,null,false,false]
[null,null,null,null,false,false]
[null,null,null,null,false,false]
[null,null,null,null,false,false]
[null,null,null,null,false,false]
[null,null,null,null,false,false]
[null,null,null,null,false,false]
[null,null,null,null,false,false]
[null,null,null,null,false,false]
[null,null,null,null,false,false]
[null,null,null,null,false,false]
[null,null,null,null,false,false]
[null,null,null,null,false,false]
[null,null,null,null,false,false]
[null,null,null,null,false,false]
[null,null,null,null,false,false]
[null,null,null,null,false,false]
[null,null,null,null,false,false]
[null,null,null,null,false,false]
[null,null,null,null,false,false]
[null,null,null,null,false,false]
[null,null,null,null,false,false]
[null,null,null,null,false,false]
[null,null,null,null,false,false]
[null,null,null,null,false,false]
[null,null,null,null,false,false]
[null,null,null,null,false,false]
[null,null,null,null,false,false]
[null,null,null,null,false,false]
[null,null,null,null,false,false]
[null,null,null,null,false,false]
[null,null,null,null,false,false]
[null,null,null,null,false,false]
[null,null,null,null,false,false]
[null,null,null,null,false,false]
[null,null,null,null,false,false]
[null,null,null,null,false,false]
[null,null,null,null,false,false]
[null,null,null,null,false,false]
[null,null,null,null,false,false]
[null,null,null,null,false,false]
[null,null,null,null,false,false]
[null,null,null,null,false,false]
[null,null,null,null,false,false]
[null,null,null,null,false,false]
[null,null,null,null,{"$f":"IF(B661=\"TV\",\"Véolia Nice Tri - Parc d'activité logistique\",IF(B661=\"DV\",\"Orédui Carros Compostage - ZI de la Grave\",IF(B661=\"GP\",\"La Gaude K3 Sita Sud - 5211 Rte de St Jeannet\",IF(B661=\"GS\",\"Véolia Nice Tri - 20 Ch du Saquier\",IF(B661=\"B\",\"SEAS La Glacière - 1019 Rte de la Grasse\",IF(B661=\"M\",\"Carros\",IF(B661=\"N\",\"Sofovar - 126 Av Louis Lépine - 83600 Fréjus\")))))))","v":false},{"$f":"IF(OR(B661=\"TV\",B661=\"DV\",B661=\"GS\",B661=\"GP\",B661=\"B\"),\"SUEZ\",IF(OR(B661=\"M\"),\"DERICHEBOURG\",IF(OR(B661=\"N\"),\"SOFOVAR\")))","v":false}]
[null,null,null,null,false,false]
[null,null,null,null,false,false]
[null,null,null,null,false,false]
[null,null,null,null,false,false]
[null,null,null,null,false,false]
[null,null,null,null,false,false]
[null,null,null,null,false,false]
[null,null,null,null,false,false]
[null,null,null,null,false,false]
[null,null,null,null,false,false]
[null,null,null,null,false,false]
[null,null,null,null,false,false]
[null,null,null,null,false,false]
[null,null,null,null,false,false]
[null,null,null,null,false,false]
[null,null,null,null,false,false]
[null,null,null,null,false,false]
[null,null,null,null,false,false]
[null,null,null,null,false,false]
[null,null,null,null,false,false]
[null,null,null,null,false,false]
[null,null,null,null,false,false]
[null,null,null,null,false,false]
[null,null,null,null,false,false]
[null,null,null,null,false,false]
[null,null,null,null,false,false]
[null,null,null,null,false,false]
[null,null,null,null,false,false]
[null,null,null,null,false,false]
[null,null,null,null,false,false]
[null,null,null,null,false,false]
[null,null,null,null,false,false]
[null,null,null,null,false,false]
[null,null,null,null,false,false]
[null,null,null,null,false,false]
[null,null,null,null,false,false]
[null,null,null,null,false,false]
[null,null,null,null,false,false]
[null,null,null,null,false,false]
[null,null,null,null,false,false]
[null,null,null,null,false,false]
[null,null,null,null,false,false]
[null,null,null,null,false,false]
[null,null,null,null,false,false]
[null,null,null,null,false,false]
[null,null,null,null,false,false]
[null,null,null,null,false,false]
[null,null,null,null,false,false]
[null,null,null,null,false,false]
[null,null,null,null,false,false]
[null,null,null,null,false,false]
[null,null,null,null,false,false]
[null,null,null,null,false,false]
[null,null,null,null,false,false]
[null,null,null,null,false,false]
[null,null,null,null,false,false]
[null,null,null,null,false,false]
[null,null,null,null,false,false]
[null,null,null,null,false,false]
[null,null,null,null,false,false]
[null,null,null,null,false,false]
[null,null,null,null,false,false]
[null,null,null,null,false,false]
[null,null,null,null,{"$f":"IF(B725=\"TV\",\"Véolia Nice Tri - Parc d'activité logistique\",IF(B725=\"DV\",\"Orédui Carros Compostage - ZI de la Grave\",IF(B725=\"GP\",\"La Gaude K3 Sita Sud - 5211 Rte de St Jeannet\",IF(B725=\"GS\",\"Véolia Nice Tri - 20 Ch du Saquier\",IF(B725=\"B\",\"SEAS La Glacière - 1019 Rte de la Grasse\",IF(B725=\"M\",\"Carros\",IF(B725=\"N\",\"Sofovar - 126 Av Louis Lépine - 83600 Fréjus\")))))))","v":false},{"$f":"IF(OR(B725=\"TV\",B725=\"DV\",B725=\"GS\",B725=\"GP\",B725=\"B\"),\"SUEZ\",IF(OR(B725=\"M\"),\"DERICHEBOURG\",IF(OR(B725=\"N\"),\"SOFOVAR\")))","v":false}]
[null,null,null,null,false,false]
[null,null,null,null,false,false]
[null,null,null,null,false,false]
[null,null,null,null,false,false]
[null,null,null,null,false,false]
[null,null,null,null,false,false]
[null,null,null,null,false,false]
[null,null,null,null,false,false]
[null,null,null,null,false,false]
[null,null,null,null,false,false]
[null,null,null,null,false,false]
[null,null,null,null,false,false]
[null,null,null,null,false,false]
[null,null,null,null,false,false]
[null,null,null,null,false,false]
[null,null,null,null,false,false]
[null,null,null,null,false,false]
[null,null,null,null,false,false]
[null,null,null,null,false,false]
[null,null,null,null,false,false]
[null,null,null,null,false,false]
[null,null,null,null,false,false]
[null,null,null,null,false,false]
[null,null,null,null,false,false]
[null,null,null,null,false,false]
[null,null,null,null,false,false]
[null,null,null,null,false,false]
[null,null,null,null,false,false]
[null,null,null,null,false,false]
[null,null,null,null,false,false]
[null,null,null,null,false,false]
[null,null,null,null,false,false]
[null,null,null,null,false,false]
[null,null,null,null,false,false]
[null,null,null,null,false,false]
[null,null,null,null,false,false]
[null,null,null,null,false,false]
[null,null,null,null,false,false]
[null,null,null,null,false,false]
[null,null,null,null,false,false]
[null,null,null,null,false,false]
[null,null,null,null,false,false]
[null,null,null,null,false,false]
[null,null,null,null,false,false]
[null,null,null,null,false,false]
[null,null,null,null,false,false]
[null,null,null,null,false,false]
[null,null,null,null,false,false]
[null,null,null,null,false,false]
[null,null,null,null,false,false]
[null,null,null,null,false,false]
[null,null,null,null,false,false]
[null,null,null,null,false,false]
[null,null,null,null,false,false]
[null,null,null,null,false,false]
[null,null,null,null,false,false]
[null,null,null,null,false,false]
[null,null,null,null,false,false]
[null,null,null,null,false,false]
[null,null,null,null,false,false]
[null,null,null,null,false,false]
[null,null,null,null,false,false]
[null,null,null,null,false,false]
[null,null,null,null,{"$f":"IF(B789=\"TV\",\"Véolia Nice Tri - Parc d'activité logistique\",IF(B789=\"DV\",\"Orédui Carros Compostage - ZI de la Grave\",IF(B789=\"GP\",\"La Gaude K3 Sita Sud - 5211 Rte de St Jeannet\",IF(B789=\"GS\",\"Véolia Nice Tri - 20 Ch du Saquier\",IF(B789=\"B\",\"SEAS La Glacière - 1019 Rte de la Grasse\",IF(B789=\"M\",\"Carros\",IF(B789=\"N\",\"Sofovar - 126 Av Louis Lépine - 83600 Fréjus\")))))))","v":false},{"$f":"IF(OR(B789=\"TV\",B789=\"DV\",B789=\"GS\",B789=\"GP\",B789=\"B\"),\"SUEZ\",IF(OR(B789=\"M\"),\"DERICHEBOURG\",IF(OR(B789=\"N\"),\"SOFOVAR\")))","v":false}]
[null,null,null,null,false,false]
[null,null,null,null,false,false]
[null,null,null,null,false,false]
[null,null,null,null,false,false]
[null,null,null,null,false,false]
[null,null,null,null,false,false]
[null,null,null,null,false,false]
[null,null,null,null,false,false]
[null,null,null,null,false,false]
[null,null,null,null,false,false]
[null,null,null,null,false,false]

{"sheet":"Registre_2","index":6,"n_rows":800,"n_cols":15,"rows_kept":800,"cut":false,"hidden":false,"merged":[[197,2,197,3],[198,2,198,3],[199,2,199,3],[191,2,191,3],[192,2,192,3],[193,2,193,3],[194,2,194,3],[195,2,195,3],[196,2,196,3],[185,2,185,3],[186,2,186,3],[187,2,187,3],[188,2,188,3],[189,2,189,3],[190,2,190,3],[179,2,179,3],[180,2,180,3],[181,2,181,3],[182,2,182,3],[183,2,183,3],[184,2,184,3],[173,2,173,3],[174,2,174,3],[175,2,175,3],[176,2,176,3],[177,2,177,3],[178,2,178,3],[167,2,167,3],[168,2,168,3],[169,2,169,3],[170,2,170,3],[171,2,171,3],[172,2,172,3],[161,2,161,3],[162,2,162,3],[163,2,163,3],[164,2,164,3],[165,2,165,3],[166,2,166,3],[155,2,155,3],[156,2,156,3],[157,2,157,3],[158,2,158,3],[159,2,159,3],[160,2,160,3],[149,2,149,3],[150,2,150,3],[151,2,151,3],[152,2,152,3],[153,2,153,3],[154,2,154,3],[143,2,143,3],[144,2,144,3],[145,2,145,3],[146,2,146,3],[147,2,147,3],[148,2,148,3],[137,2,137,3],[138,2,138,3],[139,2,139,3],[140,2,140,3],[141,2,141,3],[142,2,142,3],[131,2,131,3],[132,2,132,3],[133,2,133,3],[134,2,134,3],[135,2,135,3],[136,2,136,3],[125,2,125,3],[126,2,126,3],[127,2,127,3],[128,2,128,3],[129,2,129,3],[130,2,130,3],[119,2,119,3],[120,2,120,3],[121,2,121,3],[122,2,122,3],[123,2,123,3],[124,2,124,3],[113,2,113,3],[114,2,114,3],[115,2,115,3],[116,2,116,3],[117,2,117,3],[118,2,118,3],[107,2,107,3],[108,2,108,3],[109,2,109,3],[110,2,110,3],[111,2,111,3],[112,2,112,3],[101,2,101,3],[102,2,102,3],[103,2,103,3],[104,2,104,3],[105,2,105,3],[106,2,106,3],[95,2,95,3],[96,2,96,3],[97,2,97,3],[98,2,98,3],[99,2,99,3],[100,2,100,3],[89,2,89,3],[90,2,90,3],[91,2,91,3],[92,2,92,3],[93,2,93,3],[94,2,94,3],[83,2,83,3],[84,2,84,3],[85,2,85,3],[86,2,86,3],[87,2,87,3],[88,2,88,3],[77,2,77,3],[78,2,78,3],[79,2,79,3],[80,2,80,3],[81,2,81,3],[82,2,82,3],[71,2,71,3],[72,2,72,3],[73,2,73,3],[74,2,74,3],[75,2,75,3],[76,2,76,3],[65,2,65,3],[66,2,66,3],[67,2,67,3],[68,2,68,3],[69,2,69,3],[70,2,70,3],[59,2,59,3],[60,2,60,3],[61,2,61,3],[62,2,62,3],[63,2,63,3],[64,2,64,3],[53,2,53,3],[54,2,54,3],[55,2,55,3],[56,2,56,3],[57,2,57,3],[58,2,58,3],[47,2,47,3],[48,2,48,3],[49,2,49,3],[50,2,50,3],[51,2,51,3],[52,2,52,3],[41,2,41,3],[42,2,42,3],[43,2,43,3],[44,2,44,3],[45,2,45,3],[46,2,46,3],[35,2,35,3],[36,2,36,3],[37,2,37,3],[38,2,38,3],[39,2,39,3],[40,2,40,3],[29,2,29,3],[30,2,30,3],[31,2,31,3],[32,2,32,3],[33,2,33,3],[34,2,34,3],[23,2,23,3],[24,2,24,3],[25,2,25,3],[26,2,26,3],[27,2,27,3],[28,2,28,3],[17,2,17,3],[18,2,18,3],[19,2,19,3],[20,2,20,3],[21,2,21,3],[22,2,22,3],[11,2,11,3],[12,2,12,3],[13,2,13,3],[14,2,14,3],[15,2,15,3],[16,2,16,3],[5,2,5,3],[6,2,6,3],[7,2,7,3],[8,2,8,3],[9,2,9,3],[10,2,10,3],[0,0,0,1],[0,2,0,6],[1,2,1,3],[2,2,2,3],[3,2,3,3],[4,2,4,3],[200,2,200,3],[201,2,201,3],[202,2,202,3],[203,2,203,3],[204,2,204,3],[205,2,205,3],[206,2,206,3],[207,2,207,3],[208,2,208,3],[209,2,209,3],[210,2,210,3],[211,2,211,3],[212,2,212,3],[213,2,213,3],[214,2,214,3],[215,2,215,3],[216,2,216,3],[217,2,217,3],[218,2,218,3],[219,2,219,3],[220,2,220,3],[221,2,221,3],[222,2,222,3],[223,2,223,3],[224,2,224,3],[225,2,225,3],[226,2,226,3],[227,2,227,3],[228,2,228,3],[229,2,229,3],[230,2,230,3],[231,2,231,3],[232,2,232,3],[233,2,233,3],[234,2,234,3],[235,2,235,3],[236,2,236,3],[237,2,237,3],[238,2,238,3],[239,2,239,3],[240,2,240,3],[241,2,241,3],[242,2,242,3],[243,2,243,3],[244,2,244,3],[245,2,245,3],[246,2,246,3],[247,2,247,3],[248,2,248,3],[249,2,249,3],[250,2,250,3],[251,2,251,3],[252,2,252,3],[253,2,253,3],[254,2,254,3],[255,2,255,3],[256,2,256,3],[257,2,257,3],[258,2,258,3],[259,2,259,3],[260,2,260,3],[261,2,261,3],[262,2,262,3],[263,2,263,3],[264,2,264,3],[265,2,265,3],[266,2,266,3],[267,2,267,3],[268,2,268,3],[269,2,269,3],[270,2,270,3],[271,2,271,3],[272,2,272,3],[273,2,273,3],[274,2,274,3],[275,2,275,3],[276,2,276,3],[277,2,277,3],[278,2,278,3],[279,2,279,3],[280,2,280,3],[281,2,281,3],[282,2,282,3],[283,2,283,3],[284,2,284,3],[285,2,285,3],[286,2,286,3],[287,2,287,3],[288,2,288,3],[289,2,289,3],[290,2,290,3],[291,2,291,3],[292,2,292,3],[293,2,293,3],[294,2,294,3],[295,2,295,3],[296,2,296,3],[297,2,297,3],[298,2,298,3],[299,2,299,3],[300,2,300,3],[301,2,301,3],[302,2,302,3],[303,2,303,3],[304,2,304,3],[305,2,305,3],[306,2,306,3],[307,2,307,3],[308,2,308,3],[309,2,309,3],[310,2,310,3],[311,2,311,3],[312,2,312,3],[313,2,313,3],[314,2,314,3],[315,2,315,3],[316,2,316,3],[317,2,317,3],[318,2,318,3],[319,2,319,3],[320,2,320,3],[321,2,321,3],[322,2,322,3],[323,2,323,3],[324,2,324,3],[325,2,325,3],[326,2,326,3],[327,2,327,3],[328,2,328,3],[329,2,329,3],[330,2,330,3],[331,2,331,3],[332,2,332,3],[333,2,333,3],[334,2,334,3],[344,2,344,3],[345,2,345,3],[346,2,346,3],[347,2,347,3],[335,2,335,3],[336,2,336,3],[337,2,337,3],[338,2,338,3],[339,2,339,3],[340,2,340,3],[341,2,341,3],[342,2,342,3],[343,2,343,3],[348,2,348,3],[349,2,349,3],[350,2,350,3],[351,2,351,3],[352,2,352,3],[353,2,353,3],[354,2,354,3],[355,2,355,3],[356,2,356,3],[357,2,357,3],[358,2,358,3],[359,2,359,3],[360,2,360,3],[361,2,361,3],[362,2,362,3],[363,2,363,3],[364,2,364,3],[365,2,365,3],[366,2,366,3],[367,2,367,3],[368,2,368,3],[369,2,369,3],[370,2,370,3],[371,2,371,3],[372,2,372,3],[373,2,373,3],[374,2,374,3],[375,2,375,3],[376,2,376,3],[377,2,377,3],[378,2,378,3],[379,2,379,3],[380,2,380,3],[381,2,381,3],[382,2,382,3],[383,2,383,3],[384,2,384,3],[385,2,385,3],[386,2,386,3],[387,2,387,3],[388,2,388,3],[389,2,389,3],[390,2,390,3],[391,2,391,3],[392,2,392,3],[393,2,393,3],[394,2,394,3],[395,2,395,3],[396,2,396,3],[397,2,397,3],[398,2,398,3],[399,2,399,3],[400,2,400,3],[401,2,401,3],[402,2,402,3],[403,2,403,3],[404,2,404,3],[405,2,405,3],[406,2,406,3],[407,2,407,3],[408,2,408,3],[409,2,409,3],[410,2,410,3],[411,2,411,3],[412,2,412,3],[413,2,413,3],[414,2,414,3],[415,2,415,3],[416,2,416,3],[417,2,417,3],[418,2,418,3],[419,2,419,3],[420,2,420,3],[421,2,421,3],[422,2,422,3],[423,2,423,3],[424,2,424,3],[425,2,425,3],[426,2,426,3],[427,2,427,3],[428,2,428,3],[429,2,429,3],[430,2,430,3],[431,2,431,3],[432,2,432,3],[433,2,433,3],[434,2,434,3],[435,2,435,3],[436,2,436,3],[437,2,437,3],[438,2,438,3],[439,2,439,3],[440,2,440,3],[441,2,441,3],[442,2,442,3],[443,2,443,3],[444,2,444,3],[445,2,445,3],[446,2,446,3],[447,2,447,3],[448,2,448,3],[449,2,449,3],[450,2,450,3],[451,2,451,3],[452,2,452,3],[453,2,453,3],[454,2,454,3],[455,2,455,3],[456,2,456,3],[457,2,457,3],[458,2,458,3],[459,2,459,3],[460,2,460,3],[461,2,461,3],[462,2,462,3],[463,2,463,3],[464,2,464,3],[465,2,465,3],[466,2,466,3],[467,2,467,3],[468,2,468,3],[469,2,469,3],[470,2,470,3],[471,2,471,3],[472,2,472,3],[473,2,473,3],[474,2,474,3],[475,2,475,3],[476,2,476,3],[477,2,477,3],[478,2,478,3],[479,2,479,3],[480,2,480,3],[481,2,481,3],[482,2,482,3],[483,2,483,3],[484,2,484,3],[485,2,485,3],[486,2,486,3],[487,2,487,3],[488,2,488,3],[489,2,489,3],[490,2,490,3],[491,2,491,3],[492,2,492,3],[493,2,493,3],[494,2,494,3],[495,2,495,3],[496,2,496,3],[497,2,497,3],[498,2,498,3],[499,2,499,3],[500,2,500,3],[501,2,501,3],[502,2,502,3],[503,2,503,3],[504,2,504,3],[505,2,505,3],[506,2,506,3],[507,2,507,3],[508,2,508,3],[509,2,509,3],[510,2,510,3],[511,2,511,3],[512,2,512,3],[513,2,513,3],[514,2,514,3],[515,2,515,3],[516,2,516,3],[517,2,517,3],[518,2,518,3],[519,2,519,3],[520,2,520,3],[521,2,521,3],[522,2,522,3],[523,2,523,3],[524,2,524,3],[525,2,525,3],[526,2,526,3],[527,2,527,3],[528,2,528,3],[529,2,529,3],[530,2,530,3],[531,2,531,3],[532,2,532,3],[533,2,533,3],[534,2,534,3],[535,2,535,3],[536,2,536,3],[537,2,537,3],[538,2,538,3],[539,2,539,3],[540,2,540,3],[541,2,541,3],[542,2,542,3],[543,2,543,3],[544,2,544,3],[545,2,545,3],[546,2,546,3],[547,2,547,3],[548,2,548,3],[549,2,549,3],[550,2,550,3],[551,2,551,3],[552,2,552,3],[553,2,553,3],[554,2,554,3],[555,2,555,3],[556,2,556,3],[557,2,557,3],[558,2,558,3],[559,2,559,3],[560,2,560,3],[561,2,561,3],[562,2,562,3],[563,2,563,3],[564,2,564,3],[565,2,565,3],[566,2,566,3],[567,2,567,3],[568,2,568,3],[569,2,569,3],[570,2,570,3],[571,2,571,3],[572,2,572,3],[573,2,573,3],[574,2,574,3],[575,2,575,3],[576,2,576,3],[577,2,577,3],[578,2,578,3],[579,2,579,3],[580,2,580,3],[581,2,581,3],[582,2,582,3],[583,2,583,3],[584,2,584,3],[585,2,585,3],[586,2,586,3],[587,2,587,3],[588,2,588,3],[589,2,589,3],[590,2,590,3],[591,2,591,3],[592,2,592,3],[593,2,593,3],[594,2,594,3],[595,2,595,3],[596,2,596,3],[597,2,597,3],[598,2,598,3],[599,2,599,3],[600,2,600,3],[601,2,601,3],[602,2,602,3],[603,2,603,3],[604,2,604,3],[605,2,605,3],[606,2,606,3],[607,2,607,3],[608,2,608,3],[609,2,609,3],[610,2,610,3],[611,2,611,3],[612,2,612,3],[613,2,613,3],[614,2,614,3],[615,2,615,3],[616,2,616,3],[617,2,617,3],[618,2,618,3],[619,2,619,3],[620,2,620,3],[621,2,621,3],[622,2,622,3],[623,2,623,3],[624,2,624,3],[625,2,625,3],[626,2,626,3],[627,2,627,3],[628,2,628,3],[629,2,629,3],[630,2,630,3],[631,2,631,3],[632,2,632,3],[633,2,633,3],[634,2,634,3],[635,2,635,3],[636,2,636,3],[637,2,637,3],[638,2,638,3],[639,2,639,3],[640,2,640,3],[641,2,641,3],[642,2,642,3],[643,2,643,3],[644,2,644,3],[645,2,645,3],[646,2,646,3],[647,2,647,3],[648,2,648,3],[649,2,649,3],[650,2,650,3],[651,2,651,3],[652,2,652,3],[653,2,653,3],[654,2,654,3],[655,2,655,3],[656,2,656,3],[657,2,657,3],[658,2,658,3],[659,2,659,3],[660,2,660,3],[661,2,661,3],[662,2,662,3],[663,2,663,3],[664,2,664,3],[665,2,665,3],[666,2,666,3],[667,2,667,3],[668,2,668,3],[669,2,669,3],[670,2,670,3],[671,2,671,3],[672,2,672,3],[673,2,673,3],[674,2,674,3],[675,2,675,3],[676,2,676,3],[677,2,677,3],[678,2,678,3],[679,2,679,3],[680,2,680,3],[681,2,681,3],[682,2,682,3],[683,2,683,3],[684,2,684,3],[685,2,685,3],[686,2,686,3],[687,2,687,3],[688,2,688,3],[689,2,689,3],[690,2,690,3],[691,2,691,3],[692,2,692,3],[693,2,693,3],[694,2,694,3],[695,2,695,3],[696,2,696,3],[697,2,697,3],[698,2,698,3],[699,2,699,3],[700,2,700,3],[701,2,701,3],[702,2,702,3],[703,2,703,3],[704,2,704,3],[705,2,705,3],[706,2,706,3],[707,2,707,3],[708,2,708,3],[709,2,709,3],[710,2,710,3],[711,2,711,3],[712,2,712,3],[713,2,713,3],[714,2,714,3],[715,2,715,3],[716,2,716,3],[717,2,717,3],[718,2,718,3],[719,2,719,3],[720,2,720,3],[721,2,721,3],[722,2,722,3],[723,2,723,3],[724,2,724,3],[725,2,725,3],[726,2,726,3],[727,2,727,3],[728,2,728,3],[729,2,729,3],[730,2,730,3],[731,2,731,3],[732,2,732,3],[733,2,733,3],[734,2,734,3],[735,2,735,3],[736,2,736,3],[737,2,737,3],[738,2,738,3],[739,2,739,3],[740,2,740,3],[741,2,741,3],[742,2,742,3],[743,2,743,3],[744,2,744,3],[745,2,745,3],[746,2,746,3],[747,2,747,3],[748,2,748,3],[749,2,749,3],[750,2,750,3],[751,2,751,3],[752,2,752,3],[753,2,753,3],[754,2,754,3],[755,2,755,3],[756,2,756,3],[757,2,757,3],[758,2,758,3],[759,2,759,3],[760,2,760,3],[761,2,761,3],[762,2,762,3],[763,2,763,3],[764,2,764,3],[765,2,765,3],[766,2,766,3],[767,2,767,3],[768,2,768,3],[769,2,769,3],[770,2,770,3],[771,2,771,3],[772,2,772,3],[773,2,773,3],[774,2,774,3],[775,2,775,3],[776,2,776,3],[777,2,777,3],[778,2,778,3],[779,2,779,3],[780,2,780,3],[781,2,781,3],[782,2,782,3],[783,2,783,3],[784,2,784,3],[785,2,785,3],[786,2,786,3],[787,2,787,3],[788,2,788,3],[798,2,798,3],[799,2,799,3],[789,2,789,3],[790,2,790,3],[791,2,791,3],[792,2,792,3],[793,2,793,3],[794,2,794,3],[795,2,795,3],[796,2,796,3],[797,2,797,3]]}
[null,null,"\nREGISTRE DECHETS NON DANGEREUX\n((Arrêté du 29 février 2012 fixant le contenu des registres mentionnés aux articles R. 541-43 et R. 541-46 du code de l'environnement ))"]
["Date d'enlèvement","Nature du déchets","Quantité de déchets (en kg)",null,"Installation de destination (nom et adresse)","Transporteur ","Fiche d'intervention"]
["2018-01-09","TV",1200,null,{"$f":"IF(B3=\"TV\",\"Véolia Nice Tri - Parc d'activité logistique\",IF(B3=\"DV\",\"Orédui Carros Compostage - ZI de la Grave\",IF(B3=\"GP\",\"La Gaude K3 Sita Sud - 5211 Rte de St Jeannet\",IF(B3=\"GS\",\"Véolia Nice Tri - 20 Ch du Saquier\",IF(B3=\"B\",\"SEAS La Glacière - 1019 Rte de la Grasse\",IF(B3=\"M\",\"Carros\",IF(B3=\"N\",\"Sofovar - 126 Av Louis Lépine - 83600 Fréjus\")))))))","v":"Véolia Nice Tri - Parc d'activité logistique"},{"$f":"IF(OR(B3=\"TV\",B3=\"DV\",B3=\"GS\",B3=\"GP\",B3=\"B\"),\"SUEZ\",IF(OR(B3=\"M\"),\"DERICHEBOURG\",IF(OR(B3=\"N\"),\"SOFOVAR\")))","v":"SUEZ"},2564]
["2018-01-10","GP",3560,null,{"$f":"IF(B4=\"TV\",\"Véolia Nice Tri - Parc d'activité logistique\",IF(B4=\"DV\",\"Orédui Carros Compostage - ZI de la Grave\",IF(B4=\"GP\",\"La Gaude K3 Sita Sud - 5211 Rte de St Jeannet\",IF(B4=\"GS\",\"Véolia Nice Tri - 20 Ch du Saquier\",IF(B4=\"B\",\"SEAS La Glacière - 1019 Rte de la Grasse\",IF(B4=\"M\",\"Carros\",IF(B4=\"N\",\"Sofovar - 126 Av Louis Lépine - 83600 Fréjus\")))))))","v":"La Gaude K3 Sita Sud - 5211 Rte de St Jeannet"},{"$f":"IF(OR(B4=\"TV\",B4=\"DV\",B4=\"GS\",B4=\"GP\",B4=\"B\"),\"SUEZ\",IF(OR(B4=\"M\"),\"DERICHEBOURG\"))","v":"SUEZ"},2897562,null,null,null,null,null,null,"Nature du \ndéchets","Abbréviation"]
[null,null,null,null,false,false,null,null,null,null,null,null,null,"TOUT VENANT","TV"]
[null,null,null,null,false,false,null,null,null,null,null,null,null,"DECHETS VERTS","DV"]
[null,null,null,null,false,false,null,null,null,null,null,null,null,"GRAVATS PROPRE","GP"]
[null,null,null,null,false,false,null,null,null,null,null,null,null,"GRAVATS SALES","GS"]
[null,null,null,null,false,false,null,null,null,null,null,null,null,"METAUX","M"]
[null,null,null,null,false,false,null,null,null,null,null,null,null,"BOIS","B"]
[null,null,null,null,false,false,null,null,null,null,null,null,null,"NEONS","N"]
[null,null,null,null,false,false,null,null,null,null,null,null,null,"AMPOULES","A"]
[null,null,null,null,false,false,null,null,null,null,null,null,null,"HUILES VIDANGE","HM"]
[null,null,null,null,false,false,null,null,null,null,null,null,null,"HUILES VEGETALES","HV"]
[null,null,null,null,false,false,null,null,null,null,null,null,null,"PILES","P"]
[null,null,null,null,false,false,null,null,null,null,null,null,null,"PNEUS","PN"]
[null,null,null,null,false,false,null,null,null,null,null,null,null,"CARTOUCHES","C"]
[null,null,null,null,false,false]
[null,null,null,null,false,false]
[null,null,null,null,false,false]
[null,null,null,null,false,false]
[null,null,null,null,false,false]
[null,null,null,null,false,false]
[null,null,null,null,false,false]
[null,null,null,null,false,false]
[null,null,null,null,false,false]
[null,null,null,null,false,false]
[null,null,null,null,false,false]
[null,null,null,null,false,false]
[null,null,null,null,false,false]
[null,null,null,null,false,false]
[null,null,null,null,false,false]
[null,null,null,null,false,false]
[null,null,null,null,false,false]
[null,null,null,null,false,false]
[null,null,null,null,false,false]
[null,null,null,null,false,false]
[null,null,null,null,false,false]
[null,null,null,null,false,false]
[null,null,null,null,false,false]
[null,null,null,null,false,false]
[null,null,null,null,false,false]
[null,null,null,null,false,false]
[null,null,null,null,false,false]
[null,null,null,null,false,false]
[null,null,null,null,false,false]
[null,null,null,null,false,false]
[null,null,null,null,false,false]
[null,null,null,null,false,false]
[null,null,null,null,false,false]
[null,null,null,null,false,false]
[null,null,null,null,false,false]
[null,null,null,null,false,false]
[null,null,null,null,false,false]
[null,null,null,null,false,false]
[null,null,null,null,false,false]
[null,null,null,null,false,false]
[null,null,null,null,false,false]
[null,null,null,null,false,false]
[null,null,null,null,false,false]
[null,null,null,null,false,false]
[null,null,null,null,false,false]
[null,null,null,null,false,false]
[null,null,null,null,false,false]
[null,null,null,null,false,false]
[null,null,null,null,false,false]
[null,null,null,null,false,false]
[null,null,null,null,{"$f":"IF(B68=\"TV\",\"Véolia Nice Tri - Parc d'activité logistique\",IF(B68=\"DV\",\"Orédui Carros Compostage - ZI de la Grave\",IF(B68=\"GP\",\"La Gaude K3 Sita Sud - 5211 Rte de St Jeannet\",IF(B68=\"GS\",\"Véolia Nice Tri - 20 Ch du Saquier\",IF(B68=\"B\",\"SEAS La Glacière - 1019 Rte de la Grasse\",IF(B68=\"M\",\"Carros\",IF(B68=\"N\",\"Sofovar - 126 Av Louis Lépine - 83600 Fréjus\")))))))","v":false},{"$f":"IF(OR(B68=\"TV\",B68=\"DV\",B68=\"GS\",B68=\"GP\",B68=\"B\"),\"SUEZ\",IF(OR(B68=\"M\"),\"DERICHEBOURG\"))","v":false}]
[null,null,null,null,false,false]
[null,null,null,null,false,false]
[null,null,null,null,false,false]
[null,null,null,null,false,false]
[null,null,null,null,false,false]
[null,null,null,null,false,false]
[null,null,null,null,false,false]
[null,null,null,null,false,false]
[null,null,null,null,false,false]
[null,null,null,null,false,false]
[null,null,null,null,false,false]
[null,null,null,null,false,false]
[null,null,null,null,false,false]
[null,null,null,null,false,false]
[null,null,null,null,false,false]
[null,null,null,null,false,false]
[null,null,null,null,false,false]
[null,null,null,null,false,false]
[null,null,null,null,false,false]
[null,null,null,null,false,false]
[null,null,null,null,false,false]
[null,null,null,null,false,false]
[null,null,null,null,false,false]
[null,null,null,null,false,false]
[null,null,null,null,false,false]
[null,null,null,null,false,false]
[null,null,null,null,false,false]
[null,null,null,null,false,false]
[null,null,null,null,false,false]
[null,null,null,null,false,false]
[null,null,null,null,false,false]
[null,null,null,null,false,false]
[null,null,null,null,false,false]
[null,null,null,null,false,false]
[null,null,null,null,false,false]
[null,null,null,null,false,false]
[null,null,null,null,false,false]
[null,null,null,null,false,false]
[null,null,null,null,false,false]
[null,null,null,null,false,false]
[null,null,null,null,false,false]
[null,null,null,null,false,false]
[null,null,null,null,false,false]
[null,null,null,null,false,false]
[null,null,null,null,false,false]
[null,null,null,null,false,false]
[null,null,null,null,false,false]
[null,null,null,null,false,false]
[null,null,null,null,false,false]
[null,null,null,null,false,false]
[null,null,null,null,false,false]
[null,null,null,null,false,false]
[null,null,null,null,false,false]
[null,null,null,null,false,false]
[null,null,null,null,false,false]
[null,null,null,null,false,false]
[null,null,null,null,false,false]
[null,null,null,null,false,false]
[null,null,null,null,false,false]
[null,null,null,null,false,false]
[null,null,null,null,false,false]
[null,null,null,null,false,false]
[null,null,null,null,false,false]
[null,null,null,null,{"$f":"IF(B132=\"TV\",\"Véolia Nice Tri - Parc d'activité logistique\",IF(B132=\"DV\",\"Orédui Carros Compostage - ZI de la Grave\",IF(B132=\"GP\",\"La Gaude K3 Sita Sud - 5211 Rte de St Jeannet\",IF(B132=\"GS\",\"Véolia Nice Tri - 20 Ch du Saquier\",IF(B132=\"B\",\"SEAS La Glacière - 1019 Rte de la Grasse\",IF(B132=\"M\",\"Carros\",IF(B132=\"N\",\"Sofovar - 126 Av Louis Lépine - 83600 Fréjus\")))))))","v":false},{"$f":"IF(OR(B132=\"TV\",B132=\"DV\",B132=\"GS\",B132=\"GP\",B132=\"B\"),\"SUEZ\",IF(OR(B132=\"M\"),\"DERICHEBOURG\"))","v":false}]
[null,null,null,null,false,false]
[null,null,null,null,false,false]
[null,null,null,null,false,false]
[null,null,null,null,false,false]
[null,null,null,null,false,false]
[null,null,null,null,false,false]
[null,null,null,null,false,false]
[null,null,null,null,false,false]
[null,null,null,null,false,false]
[null,null,null,null,false,false]
[null,null,null,null,false,false]
[null,null,null,null,false,false]
[null,null,null,null,false,false]
[null,null,null,null,false,false]
[null,null,null,null,false,false]
[null,null,null,null,false,false]
[null,null,null,null,false,false]
[null,null,null,null,false,false]
[null,null,null,null,false,false]
[null,null,null,null,false,false]
[null,null,null,null,false,false]
[null,null,null,null,false,false]
[null,null,null,null,false,false]
[null,null,null,null,false,false]
[null,null,null,null,false,false]
[null,null,null,null,false,false]
[null,null,null,null,false,false]
[null,null,null,null,false,false]
[null,null,null,null,false,false]
[null,null,null,null,false,false]
[null,null,null,null,false,false]
[null,null,null,null,false,false]
[null,null,null,null,false,false]
[null,null,null,null,false,false]
[null,null,null,null,false,false]
[null,null,null,null,false,false]
[null,null,null,null,false,false]
[null,null,null,null,false,false]
[null,null,null,null,false,false]
[null,null,null,null,false,false]
[null,null,null,null,false,false]
[null,null,null,null,false,false]
[null,null,null,null,false,false]
[null,null,null,null,false,false]
[null,null,null,null,false,false]
[null,null,null,null,false,false]
[null,null,null,null,false,false]
[null,null,null,null,false,false]
[null,null,null,null,false,false]
[null,null,null,null,false,false]
[null,null,null,null,false,false]
[null,null,null,null,false,false]
[null,null,null,null,false,false]
[null,null,null,null,false,false]
[null,null,null,null,false,false]
[null,null,null,null,false,false]
[null,null,null,null,false,false]
[null,null,null,null,false,false]
[null,null,null,null,false,false]
[null,null,null,null,false,false]
[null,null,null,null,false,false]
[null,null,null,null,false,false]
[null,null,null,null,false,false]
[null,null,null,null,{"$f":"IF(B196=\"TV\",\"Véolia Nice Tri - Parc d'activité logistique\",IF(B196=\"DV\",\"Orédui Carros Compostage - ZI de la Grave\",IF(B196=\"GP\",\"La Gaude K3 Sita Sud - 5211 Rte de St Jeannet\",IF(B196=\"GS\",\"Véolia Nice Tri - 20 Ch du Saquier\",IF(B196=\"B\",\"SEAS La Glacière - 1019 Rte de la Grasse\",IF(B196=\"M\",\"Carros\",IF(B196=\"N\",\"Sofovar - 126 Av Louis Lépine - 83600 Fréjus\")))))))","v":false},{"$f":"IF(OR(B196=\"TV\",B196=\"DV\",B196=\"GS\",B196=\"GP\",B196=\"B\"),\"SUEZ\",IF(OR(B196=\"M\"),\"DERICHEBOURG\"))","v":false}]
[null,null,null,null,false,false]
[null,null,null,null,false,false]
[null,null,null,null,false,false]
[null,null,null,null,false,false]
[null,null,null,null,false,false]
[null,null,null,null,false,false]
[null,null,null,null,false,false]
[null,null,null,null,false,false]
[null,null,null,null,false,false]
[null,null,null,null,false,false]
[null,null,null,null,false,false]
[null,null,null,null,false,false]
[null,null,null,null,false,false]
[null,null,null,null,false,false]
[null,null,null,null,false,false]
[null,null,null,null,false,false]
[null,null,null,null,false,false]
[null,null,null,null,false,false]
[null,null,null,null,false,false]
[null,null,null,null,false,false]
[null,null,null,null,false,false]
[null,null,null,null,false,false]
[null,null,null,null,false,false]
[null,null,null,null,false,false]
[null,null,null,null,false,false]
[null,null,null,null,false,false]
[null,null,null,null,false,false]
[null,null,null,null,false,false]
[null,null,null,null,false,false]
[null,null,null,null,false,false]
[null,null,null,null,false,false]
[null,null,null,null,false,false]
[null,null,null,null,false,false]
[null,null,null,null,false,false]
[null,null,null,null,false,false]
[null,null,null,null,false,false]
[null,null,null,null,false,false]
[null,null,null,null,false,false]
[null,null,null,null,false,false]
[null,null,null,null,false,false]
[null,null,null,null,false,false]
[null,null,null,null,false,false]
[null,null,null,null,false,false]
[null,null,null,null,false,{"$f":"IF(OR(B240=\"TV\",B240=\"DV\",B240=\"GS\",B240=\"GP\",B240=\"B\"),\"SUEZ\",IF(OR(B240=\"M\"),\"DERICHEBOURG\"))","v":false}]
[null,null,null,null,false,false]
[null,null,null,null,false,false]
[null,null,null,null,false,false]
[null,null,null,null,false,false]
[null,null,null,null,false,false]
[null,null,null,null,false,false]
[null,null,null,null,false,false]
[null,null,null,null,false,false]
[null,null,null,null,false,false]
[null,null,null,null,false,false]
[null,null,null,null,false,false]
[null,null,null,null,false,false]
[null,null,null,null,false,false]
[null,null,null,null,false,false]
[null,null,null,null,false,false]
[null,null,null,null,false,false]
[null,null,null,null,false,false]
[null,null,null,null,false,false]
[null,null,null,null,false,false]
[null,null,null,null,{"$f":"IF(B260=\"TV\",\"Véolia Nice Tri - Parc d'activité logistique\",IF(B260=\"DV\",\"Orédui Carros Compostage - ZI de la Grave\",IF(B260=\"GP\",\"La Gaude K3 Sita Sud - 5211 Rte de St Jeannet\",IF(B260=\"GS\",\"Véolia Nice Tri - 20 Ch du Saquier\",IF(B260=\"B\",\"SEAS La Glacière - 1019 Rte de la Grasse\",IF(B260=\"M\",\"Carros\",IF(B260=\"N\",\"Sofovar - 126 Av Louis Lépine - 83600 Fréjus\")))))))","v":false},false]
[null,null,null,null,false,false]
[null,null,null,null,false,false]
[null,null,null,null,false,false]
[null,null,null,null,false,false]
[null,null,null,null,false,false]
[null,null,null,null,false,false]
[null,null,null,null,false,false]
[null,null,null,null,false,false]
[null,null,null,null,false,false]
[null,null,null,null,false,false]
[null,null,null,null,false,false]
[null,null,null,null,false,false]
[null,null,null,null,false,false]
[null,null,null,null,false,false]
[null,null,null,null,false,false]
[null,null,null,null,false,false]
[null,null,null,null,false,false]
[null,null,null,null,false,false]
[null,null,null,null,false,false]
[null,null,null,null,false,false]
[null,null,null,null,false,false]
[null,null,null,null,false,false]
[null,null,null,null,false,false]
[null,null,null,null,false,false]
[null,null,null,null,false,false]
[null,null,null,null,false,false]
[null,null,null,null,false,false]
[null,null,null,null,false,false]
[null,null,null,null,false,false]
[null,null,null,null,false,false]
[null,null,null,null,false,false]
[null,null,null,null,false,false]
[null,null,null,null,false,false]
[null,null,null,null,false,false]
[null,null,null,null,false,false]
[null,null,null,null,false,{"$f":"IF(OR(B296=\"TV\",B296=\"DV\",B296=\"GS\",B296=\"GP\",B296=\"B\"),\"SUEZ\",IF(OR(B296=\"M\"),\"DERICHEBOURG\"))","v":false}]
[null,null,null,null,false,false]
[null,null,null,null,false,false]
[null,null,null,null,false,false]
[null,null,null,null,false,false]
[null,null,null,null,false,false]
[null,null,null,null,false,false]
[null,null,null,null,false,false]
[null,null,null,null,false,false]
[null,null,null,null,false,false]
[null,null,null,null,false,false]
[null,null,null,null,false,false]
[null,null,null,null,false,false]
[null,null,null,null,false,false]
[null,null,null,null,false,false]
[null,null,null,null,false,false]
[null,null,null,null,false,false]
[null,null,null,null,false,false]
[null,null,null,null,false,false]
[null,null,null,null,false,false]
[null,null,null,null,false,false]
[null,null,null,null,false,false]
[null,null,null,null,false,false]
[null,null,null,null,false,false]
[null,null,null,null,false,false]
[null,null,null,null,false,false]
[null,null,null,null,false,false]
[null,null,null,null,false,false]
[null,null,null,null,{"$f":"IF(B324=\"TV\",\"Véolia Nice Tri - Parc d'activité logistique\",IF(B324=\"DV\",\"Orédui Carros Compostage - ZI de la Grave\",IF(B324=\"GP\",\"La Gaude K3 Sita Sud - 5211 Rte de St Jeannet\",IF(B324=\"GS\",\"Véolia Nice Tri - 20 Ch du Saquier\",IF(B324=\"B\",\"SEAS La Glacière - 1019 Rte de la Grasse\",IF(B324=\"M\",\"Carros\",IF(B324=\"N\",\"Sofovar - 126 Av Louis Lépine - 83600 Fréjus\")))))))","v":false},false]
[null,null,null,null,false,false]
[null,null,null,null,false,false]
[null,null,null,null,false,false]
[null,null,null,null,false,false]
[null,null,null,null,false,false]
[null,null,null,null,false,false]
[null,null,null,null,false,false]
[null,null,null,null,false,false]
[null,null,null,null,false,false]
[null,null,null,null,false,false]
[null,null,null,null,false,false]
[null,null,null,null,false,false]
[null,null,null,null,false,false]
[null,null,null,null,false,false]
[null,null,null,null,false,false]
[null,null,null,null,false,false]
[null,null,null,null,false,false]
[null,null,null,null,false,false]
[null,null,null,null,false,false]
[null,null,null,null,false,{"$f":"IF(OR(B344=\"TV\",B344=\"DV\",B344=\"GS\",B344=\"GP\",B344=\"B\"),\"SUEZ\",IF(OR(B344=\"M\"),\"DERICHEBOURG\"))","v":false}]
[null,null,null,null,false,false]
[null,null,null,null,false,false]
[null,null,null,null,false,false]
[null,null,null,null,false,false]
[null,null,null,null,{"$f":"IF(B349=\"TV\",\"Véolia Nice Tri - Parc d'activité logistique\",IF(B349=\"DV\",\"Orédui Carros Compostage - ZI de la Grave\",IF(B349=\"GP\",\"La Gaude K3 Sita Sud - 5211 Rte de St Jeannet\",IF(B349=\"GS\",\"Véolia Nice Tri - 20 Ch du Saquier\",IF(B349=\"B\",\"SEAS La Glacière - 1019 Rte de la Grasse\",IF(B349=\"M\",\"Carros\",IF(B349=\"N\",\"Sofovar - 126 Av Louis Lépine - 83600 Fréjus\")))))))","v":false},{"$f":"IF(OR(B349=\"TV\",B349=\"DV\",B349=\"GS\",B349=\"GP\",B349=\"B\"),\"SUEZ\",IF(OR(B349=\"M\"),\"DERICHEBOURG\"))","v":false}]
[null,null,null,null,false,false]
[null,null,null,null,false,false]
[null,null,null,null,false,false]
[null,null,null,null,false,false]
[null,null,null,null,false,false]
[null,null,null,null,false,false]
[null,null,null,null,false,false]
[null,null,null,null,false,false]
[null,null,null,null,false,false]
[null,null,null,null,false,false]
[null,null,null,null,false,false]
[null,null,null,null,false,false]
[null,null,null,null,false,false]
[null,null,null,null,false,false]
[null,null,null,null,false,false]
[null,null,null,null,false,false]
[null,null,null,null,false,false]
[null,null,null,null,false,false]
[null,null,null,null,false,false]
[null,null,null,null,false,false]
[null,null,null,null,false,false]
[null,null,null,null,false,false]
[null,null,null,null,false,false]
[null,null,null,null,false,false]
[null,null,null,null,false,false]
[null,null,null,null,false,false]
[null,null,null,null,false,false]
[null,null,null,null,false,false]
[null,null,null,null,false,false]
[null,null,null,null,false,false]
[null,null,null,null,false,false]
[null,null,null,null,false,false]
[null,null,null,null,false,false]
[null,null,null,null,false,false]
[null,null,null,null,false,false]
[null,null,null,null,false,false]
[null,null,null,null,false,false]
[null,null,null,null,false,false]
[null,null,null,null,false,false]
[null,null,null,null,false,false]
[null,null,null,null,false,false]
[null,null,null,null,false,false]
[null,null,null,null,false,false]
[null,null,null,null,false,false]
[null,null,null,null,false,false]
[null,null,null,null,false,false]
[null,null,null,null,false,false]
[null,null,null,null,false,false]
[null,null,null,null,false,false]
[null,null,null,null,false,false]
[null,null,null,null,false,false]
[null,null,null,null,false,false]
[null,null,null,null,false,false]
[null,null,null,null,false,false]
[null,null,null,null,false,false]
[null,null,null,null,false,false]
[null,null,null,null,false,false]
[null,null,null,null,false,false]
[null,null,null,null,false,false]
[null,null,null,null,false,false]
[null,null,null,null,false,false]
[null,null,null,null,false,false]
[null,null,null,null,false,false]
[null,null,null,null,{"$f":"IF(B413=\"TV\",\"Véolia Nice Tri - Parc d'activité logistique\",IF(B413=\"DV\",\"Orédui Carros Compostage - ZI de la Grave\",IF(B413=\"GP\",\"La Gaude K3 Sita Sud - 5211 Rte de St Jeannet\",IF(B413=\"GS\",\"Véolia Nice Tri - 20 Ch du Saquier\",IF(B413=\"B\",\"SEAS La Glacière - 1019 Rte de la Grasse\",IF(B413=\"M\",\"Carros\",IF(B413=\"N\",\"Sofovar - 126 Av Louis Lépine - 83600 Fréjus\")))))))","v":false},{"$f":"IF(OR(B413=\"TV\",B413=\"DV\",B413=\"GS\",B413=\"GP\",B413=\"B\"),\"SUEZ\",IF(OR(B413=\"M\"),\"DERICHEBOURG\"))","v":false}]
[null,null,null,null,false,false]
[null,null,null,null,false,false]
[null,null,null,null,false,false]
[null,null,null,null,false,false]
[null,null,null,null,false,false]
[null,null,null,null,false,false]
[null,null,null,null,false,false]
[null,null,null,null,false,false]
[null,null,null,null,false,false]
[null,null,null,null,false,false]
[null,null,null,null,false,false]
[null,null,null,null,false,false]
[null,null,null,null,false,false]
[null,null,null,null,false,false]
[null,null,null,null,false,false]
[null,null,null,null,false,false]
[null,null,null,null,false,false]
[null,null,null,null,false,false]
[null,null,null,null,false,false]
[null,null,null,null,false,false]
[null,null,null,null,false,false]
[null,null,null,null,false,false]
[null,null,null,null,false,false]
[null,null,null,null,false,false]
[null,null,null,null,false,false]
[null,null,null,null,false,false]
[null,null,null,null,false,false]
[null,null,null,null,false,false]
[null,null,null,null,false,false]
[null,null,null,null,false,false]
[null,null,null,null,false,false]
[null,null,null,null,false,false]
[null,null,null,null,false,false]
[null,null,null,null,false,false]
[null,null,null,null,false,false]
[null,null,null,null,false,false]
[null,null,null,null,false,false]
[null,null,null,null,false,false]
[null,null,null,null,false,false]
[null,null,null,null,false,false]
[null,null,null,null,false,false]
[null,null,null,null,false,false]
[null,null,null,null,false,false]
[null,null,null,null,false,false]
[null,null,null,null,false,false]
[null,null,null,null,false,false]
[null,null,null,null,false,false]
[null,null,null,null,false,false]
[null,null,null,null,false,false]
[null,null,null,null,false,false]
[null,null,null,null,false,false]
[null,null,null,null,false,false]
[null,null,null,null,false,false]
[null,null,null,null,false,false]
[null,null,null,null,false,false]
[null,null,null,null,false,false]
[null,null,null,null,false,false]
[null,null,null,null,false,false]
[null,null,null,null,false,false]
[null,null,null,null,false,false]
[null,null,null,null,false,false]
[null,null,null,null,false,false]
[null,null,null,null,false,false]
[null,null,null,null,{"$f":"IF(B477=\"TV\",\"Véolia Nice Tri - Parc d'activité logistique\",IF(B477=\"DV\",\"Orédui Carros Compostage - ZI de la Grave\",IF(B477=\"GP\",\"La Gaude K3 Sita Sud - 5211 Rte de St Jeannet\",IF(B477=\"GS\",\"Véolia Nice Tri - 20 Ch du Saquier\",IF(B477=\"B\",\"SEAS La Glacière - 1019 Rte de la Grasse\",IF(B477=\"M\",\"Carros\",IF(B477=\"N\",\"Sofovar - 126 Av Louis Lépine - 83600 Fréjus\")))))))","v":false},{"$f":"IF(OR(B477=\"TV\",B477=\"DV\",B477=\"GS\",B477=\"GP\",B477=\"B\"),\"SUEZ\",IF(OR(B477=\"M\"),\"DERICHEBOURG\"))","v":false}]
[null,null,null,null,false,false]
[null,null,null,null,false,false]
[null,null,null,null,false,false]
[null,null,null,null,false,false]
[null,null,null,null,false,false]
[null,null,null,null,false,false]
[null,null,null,null,false,false]
[null,null,null,null,false,false]
[null,null,null,null,false,false]
[null,null,null,null,false,false]
[null,null,null,null,false,false]
[null,null,null,null,false,false]
[null,null,null,null,false,false]
[null,null,null,null,false,false]
[null,null,null,null,false,false]
[null,null,null,null,false,false]
[null,null,null,null,false,false]
[null,null,null,null,false,false]
[null,null,null,null,false,false]
[null,null,null,null,false,false]
[null,null,null,null,false,false]
[null,null,null,null,false,false]
[null,null,null,null,false,false]
[null,null,null,null,false,false]
[null,null,null,null,false,false]
[null,null,null,null,false,false]
[null,null,null,null,false,false]
[null,null,null,null,false,false]
[null,null,null,null,false,false]
[null,null,null,null,false,false]
[null,null,null,null,false,false]
[null,null,null,null,false,false]
[null,null,null,null,false,false]
[null,null,null,null,false,false]
[null,null,null,null,false,false]
[null,null,null,null,false,false]
[null,null,null,null,false,false]
[null,null,null,null,false,false]
[null,null,null,null,false,false]
[null,null,null,null,false,false]
[null,null,null,null,false,false]
[null,null,null,null,false,false]
[null,null,null,null,false,false]
[null,null,null,null,false,false]
[null,null,null,null,false,false]
[null,null,null,null,false,false]
[null,null,null,null,false,false]
[null,null,null,null,false,false]
[null,null,null,null,false,false]
[null,null,null,null,false,false]
[null,null,null,null,false,false]
[null,null,null,null,false,false]
[null,null,null,null,false,false]
[null,null,null,null,false,false]
[null,null,null,null,false,false]
[null,null,null,null,false,false]
[null,null,null,null,false,false]
[null,null,null,null,false,false]
[null,null,null,null,false,false]
[null,null,null,null,false,false]
[null,null,null,null,false,false]
[null,null,null,null,false,false]
[null,null,null,null,false,false]
[null,null,null,null,{"$f":"IF(B541=\"TV\",\"Véolia Nice Tri - Parc d'activité logistique\",IF(B541=\"DV\",\"Orédui Carros Compostage - ZI de la Grave\",IF(B541=\"GP\",\"La Gaude K3 Sita Sud - 5211 Rte de St Jeannet\",IF(B541=\"GS\",\"Véolia Nice Tri - 20 Ch du Saquier\",IF(B541=\"B\",\"SEAS La Glacière - 1019 Rte de la Grasse\",IF(B541=\"M\",\"Carros\",IF(B541=\"N\",\"Sofovar - 126 Av Louis Lépine - 83600 Fréjus\")))))))","v":false},{"$f":"IF(OR(B541=\"TV\",B541=\"DV\",B541=\"GS\",B541=\"GP\",B541=\"B\"),\"SUEZ\",IF(OR(B541=\"M\"),\"DERICHEBOURG\"))","v":false}]
[null,null,null,null,false,false]
[null,null,null,null,false,false]
[null,null,null,null,false,false]
[null,null,null,null,false,false]
[null,null,null,null,false,false]
[null,null,null,null,false,false]
[null,null,null,null,false,false]
[null,null,null,null,false,false]
[null,null,null,null,false,false]
[null,null,null,null,false,false]
[null,null,null,null,false,false]
[null,null,null,null,false,false]
[null,null,null,null,false,false]
[null,null,null,null,false,false]
[null,null,null,null,false,false]
[null,null,null,null,false,false]
[null,null,null,null,false,false]
[null,null,null,null,false,false]
[null,null,null,null,false,false]
[null,null,null,null,false,false]
[null,null,null,null,false,false]
[null,null,null,null,false,false]
[null,null,null,null,false,false]
[null,null,null,null,false,false]
[null,null,null,null,false,false]
[null,null,null,null,false,false]
[null,null,null,null,false,false]
[null,null,null,null,false,false]
[null,null,null,null,false,false]
[null,null,null,null,false,false]
[null,null,null,null,false,false]
[null,null,null,null,false,false]
[null,null,null,null,false,false]
[null,null,null,null,false,false]
[null,null,null,null,false,false]
[null,null,null,null,false,false]
[null,null,null,null,false,false]
[null,null,null,null,false,false]
[null,null,null,null,false,false]
[null,null,null,null,false,false]
[null,null,null,null,false,false]
[null,null,null,null,false,false]
[null,null,null,null,false,false]
[null,null,null,null,false,false]
[null,null,null,null,false,false]
[null,null,null,null,false,false]
[null,null,null,null,false,false]
[null,null,null,null,false,false]
[null,null,null,null,false,false]
[null,null,null,null,false,false]
[null,null,null,null,false,false]
[null,null,null,null,false,false]
[null,null,null,null,false,false]
[null,null,null,null,false,false]
[null,null,null,null,false,false]
[null,null,null,null,false,false]
[null,null,null,null,false,false]
[null,null,null,null,false,false]
[null,null,null,null,false,false]
[null,null,null,null,false,false]
[null,null,null,null,false,false]
[null,null,null,null,false,false]
[null,null,null,null,false,false]
[null,null,null,null,{"$f":"IF(B605=\"TV\",\"Véolia Nice Tri - Parc d'activité logistique\",IF(B605=\"DV\",\"Orédui Carros Compostage - ZI de la Grave\",IF(B605=\"GP\",\"La Gaude K3 Sita Sud - 5211 Rte de St Jeannet\",IF(B605=\"GS\",\"Véolia Nice Tri - 20 Ch du Saquier\",IF(B605=\"B\",\"SEAS La Glacière - 1019 Rte de la Grasse\",IF(B605=\"M\",\"Carros\",IF(B605=\"N\",\"Sofovar - 126 Av Louis Lépine - 83600 Fréjus\")))))))","v":false},{"$f":"IF(OR(B605=\"TV\",B605=\"DV\",B605=\"GS\",B605=\"GP\",B605=\"B\"),\"SUEZ\",IF(OR(B605=\"M\"),\"DERICHEBOURG\"))","v":false}]
[null,null,null,null,false,false]
[null,null,null,null,false,false]
[null,null,null,null,false,false]
[null,null,null,null,false,false]
[null,null,null,null,false,false]
[null,null,null,null,false,false]
[null,null,null,null,false,false]
[null,null,null,null,false,false]
[null,null,null,null,false,false]
[null,null,null,null,false,false]
[null,null,null,null,false,false]
[null,null,null,null,false,false]
[null,null,null,null,false,false]
[null,null,null,null,false,false]
[null,null,null,null,false,false]
[null,null,null,null,false,false]
[null,null,null,null,false,false]
[null,null,null,null,false,false]
[null,null,null,null,false,false]
[null,null,null,null,false,false]
[null,null,null,null,false,false]
[null,null,null,null,false,false]
[null,null,null,null,false,false]
[null,null,null,null,false,false]
[null,null,null,null,false,false]
[null,null,null,null,false,false]
[null,null,null,null,false,false]
[null,null,null,null,false,false]
[null,null,null,null,false,false]
[null,null,null,null,false,false]
[null,null,null,null,false,false]
[null,null,null,null,false,false]
[null,null,null,null,false,false]
[null,null,null,null,false,false]
[null,null,null,null,false,false]
[null,null,null,null,false,false]
[null,null,null,null,false,false]
[null,null,null,null,false,false]
[null,null,null,null,false,false]
[null,null,null,null,false,false]
[null,null,null,null,false,false]
[null,null,null,null,false,false]
[null,null,null,null,false,false]
[null,null,null,null,false,false]
[null,null,null,null,false,false]
[null,null,null,null,false,false]
[null,null,null,null,false,false]
[null,null,null,null,false,false]
[null,null,null,null,false,false]
[null,null,null,null,false,false]
[null,null,null,null,false,false]
[null,null,null,null,false,false]
[null,null,null,null,false,false]
[null,null,null,null,false,false]
[null,null,null,null,false,false]
[null,null,null,null,false,false]
[null,null,null,null,false,false]
[null,null,null,null,false,false]
[null,null,null,null,false,false]
[null,null,null,null,false,false]
[null,null,null,null,false,false]
[null,null,null,null,false,false]
[null,null,null,null,false,false]
[null,null,null,null,{"$f":"IF(B669=\"TV\",\"Véolia Nice Tri - Parc d'activité logistique\",IF(B669=\"DV\",\"Orédui Carros Compostage - ZI de la Grave\",IF(B669=\"GP\",\"La Gaude K3 Sita Sud - 5211 Rte de St Jeannet\",IF(B669=\"GS\",\"Véolia Nice Tri - 20 Ch du Saquier\",IF(B669=\"B\",\"SEAS La Glacière - 1019 Rte de la Grasse\",IF(B669=\"M\",\"Carros\",IF(B669=\"N\",\"Sofovar - 126 Av Louis Lépine - 83600 Fréjus\")))))))","v":false},{"$f":"IF(OR(B669=\"TV\",B669=\"DV\",B669=\"GS\",B669=\"GP\",B669=\"B\"),\"SUEZ\",IF(OR(B669=\"M\"),\"DERICHEBOURG\"))","v":false}]
[null,null,null,null,false,false]
[null,null,null,null,false,false]
[null,null,null,null,false,false]
[null,null,null,null,false,false]
[null,null,null,null,false,false]
[null,null,null,null,false,false]
[null,null,null,null,false,false]
[null,null,null,null,false,false]
[null,null,null,null,false,false]
[null,null,null,null,false,false]
[null,null,null,null,false,false]
[null,null,null,null,false,false]
[null,null,null,null,false,false]
[null,null,null,null,false,false]
[null,null,null,null,false,false]
[null,null,null,null,false,false]
[null,null,null,null,false,false]
[null,null,null,null,false,false]
[null,null,null,null,false,false]
[null,null,null,null,false,false]
[null,null,null,null,false,false]
[null,null,null,null,false,false]
[null,null,null,null,false,false]
[null,null,null,null,false,false]
[null,null,null,null,false,false]
[null,null,null,null,false,false]
[null,null,null,null,false,false]
[null,null,null,null,false,false]
[null,null,null,null,false,false]
[null,null,null,null,false,false]
[null,null,null,null,false,false]
[null,null,null,null,false,false]
[null,null,null,null,false,false]
[null,null,null,null,false,false]
[null,null,null,null,false,false]
[null,null,null,null,false,false]
[null,null,null,null,false,false]
[null,null,null,null,false,false]
[null,null,null,null,false,false]
[null,null,null,null,false,false]
[null,null,null,null,false,false]
[null,null,null,null,false,false]
[null,null,null,null,false,false]
[null,null,null,null,false,false]
[null,null,null,null,false,false]
[null,null,null,null,false,false]
[null,null,null,null,false,false]
[null,null,null,null,false,false]
[null,null,null,null,false,false]
[null,null,null,null,false,false]
[null,null,null,null,false,false]
[null,null,null,null,false,false]
[null,null,null,null,false,false]
[null,null,null,null,false,false]
[null,null,null,null,false,false]
[null,null,null,null,false,false]
[null,null,null,null,false,false]
[null,null,null,null,false,false]
[null,null,null,null,false,false]
[null,null,null,null,false,false]
[null,null,null,null,false,false]
[null,null,null,null,false,false]
[null,null,null,null,false,false]
[null,null,null,null,{"$f":"IF(B733=\"TV\",\"Véolia Nice Tri - Parc d'activité logistique\",IF(B733=\"DV\",\"Orédui Carros Compostage - ZI de la Grave\",IF(B733=\"GP\",\"La Gaude K3 Sita Sud - 5211 Rte de St Jeannet\",IF(B733=\"GS\",\"Véolia Nice Tri - 20 Ch du Saquier\",IF(B733=\"B\",\"SEAS La Glacière - 1019 Rte de la Grasse\",IF(B733=\"M\",\"Carros\",IF(B733=\"N\",\"Sofovar - 126 Av Louis Lépine - 83600 Fréjus\")))))))","v":false},{"$f":"IF(OR(B733=\"TV\",B733=\"DV\",B733=\"GS\",B733=\"GP\",B733=\"B\"),\"SUEZ\",IF(OR(B733=\"M\"),\"DERICHEBOURG\"))","v":false}]
[null,null,null,null,false,false]
[null,null,null,null,false,false]
[null,null,null,null,false,false]
[null,null,null,null,false,false]
[null,null,null,null,false,false]
[null,null,null,null,false,false]
[null,null,null,null,false,false]
[null,null,null,null,false,false]
[null,null,null,null,false,false]
[null,null,null,null,false,false]
[null,null,null,null,false,false]
[null,null,null,null,false,false]
[null,null,null,null,false,false]
[null,null,null,null,false,false]
[null,null,null,null,false,false]
[null,null,null,null,false,false]
[null,null,null,null,false,false]
[null,null,null,null,false,false]
[null,null,null,null,false,false]
[null,null,null,null,false,false]
[null,null,null,null,false,false]
[null,null,null,null,false,false]
[null,null,null,null,false,false]
[null,null,null,null,false,false]
[null,null,null,null,false,false]
[null,null,null,null,false,false]
[null,null,null,null,false,false]
[null,null,null,null,false,false]
[null,null,null,null,false,false]
[null,null,null,null,false,false]
[null,null,null,null,false,false]
[null,null,null,null,false,false]
[null,null,null,null,false,false]
[null,null,null,null,false,false]
[null,null,null,null,false,false]
[null,null,null,null,false,false]
[null,null,null,null,false,false]
[null,null,null,null,false,false]
[null,null,null,null,false,false]
[null,null,null,null,false,false]
[null,null,null,null,false,false]
[null,null,null,null,false,false]
[null,null,null,null,false,false]
[null,null,null,null,false,false]
[null,null,null,null,false,false]
[null,null,null,null,false,false]
[null,null,null,null,false,false]
[null,null,null,null,false,false]
[null,null,null,null,false,false]
[null,null,null,null,false,false]
[null,null,null,null,false,false]
[null,null,null,null,false,false]
[null,null,null,null,false,false]
[null,null,null,null,false,false]
[null,null,null,null,false,false]
[null,null,null,null,false,false]
[null,null,null,null,false,false]
[null,null,null,null,false,false]
[null,null,null,null,false,false]
[null,null,null,null,false,false]
[null,null,null,null,false,false]
[null,null,null,null,false,false]
[null,null,null,null,false,false]
[null,null,null,null,{"$f":"IF(B797=\"TV\",\"Véolia Nice Tri - Parc d'activité logistique\",IF(B797=\"DV\",\"Orédui Carros Compostage - ZI de la Grave\",IF(B797=\"GP\",\"La Gaude K3 Sita Sud - 5211 Rte de St Jeannet\",IF(B797=\"GS\",\"Véolia Nice Tri - 20 Ch du Saquier\",IF(B797=\"B\",\"SEAS La Glacière - 1019 Rte de la Grasse\",IF(B797=\"M\",\"Carros\",IF(B797=\"N\",\"Sofovar - 126 Av Louis Lépine - 83600 Fréjus\")))))))","v":false},{"$f":"IF(OR(B797=\"TV\",B797=\"DV\",B797=\"GS\",B797=\"GP\",B797=\"B\"),\"SUEZ\",IF(OR(B797=\"M\"),\"DERICHEBOURG\"))","v":false}]
[null,null,null,null,false,false]
[null,null,null,null,false,false]
[null,null,null,null,false,false]

{"sheet":"Registre","index":7,"n_rows":810,"n_cols":14,"rows_kept":810,"cut":false,"hidden":false,"merged":[[10,2,10,3],[0,0,0,1],[0,2,0,6],[1,2,1,3],[2,2,2,3],[3,2,3,3],[4,2,4,3],[5,2,5,3],[6,2,6,3],[7,2,7,3],[8,2,8,3],[9,2,9,3],[16,2,16,3],[17,2,17,3],[18,2,18,3],[19,2,19,3],[20,2,20,3],[11,2,11,3],[12,2,12,3],[13,2,13,3],[14,2,14,3],[15,2,15,3],[26,2,26,3],[27,2,27,3],[28,2,28,3],[29,2,29,3],[30,2,30,3],[21,2,21,3],[22,2,22,3],[23,2,23,3],[24,2,24,3],[25,2,25,3],[36,2,36,3],[37,2,37,3],[38,2,38,3],[39,2,39,3],[40,2,40,3],[31,2,31,3],[32,2,32,3],[33,2,33,3],[34,2,34,3],[35,2,35,3],[46,2,46,3],[47,2,47,3],[48,2,48,3],[49,2,49,3],[50,2,50,3],[41,2,41,3],[42,2,42,3],[43,2,43,3],[44,2,44,3],[45,2,45,3],[56,2,56,3],[57,2,57,3],[58,2,58,3],[59,2,59,3],[60,2,60,3],[51,2,51,3],[52,2,52,3],[53,2,53,3],[54,2,54,3],[55,2,55,3],[66,2,66,3],[67,2,67,3],[68,2,68,3],[69,2,69,3],[70,2,70,3],[61,2,61,3],[62,2,62,3],[63,2,63,3],[64,2,64,3],[65,2,65,3],[76,2,76,3],[77,2,77,3],[78,2,78,3],[79,2,79,3],[80,2,80,3],[71,2,71,3],[72,2,72,3],[73,2,73,3],[74,2,74,3],[75,2,75,3],[86,2,86,3],[87,2,87,3],[88,2,88,3],[89,2,89,3],[90,2,90,3],[81,2,81,3],[82,2,82,3],[83,2,83,3],[84,2,84,3],[85,2,85,3],[96,2,96,3],[97,2,97,3],[98,2,98,3],[99,2,99,3],[100,2,100,3],[91,2,91,3],[92,2,92,3],[93,2,93,3],[94,2,94,3],[95,2,95,3],[106,2,106,3],[107,2,107,3],[108,2,108,3],[109,2,109,3],[110,2,110,3],[101,2,101,3],[102,2,102,3],[103,2,103,3],[104,2,104,3],[105,2,105,3],[116,2,116,3],[117,2,117,3],[118,2,118,3],[119,2,119,3],[120,2,120,3],[111,2,111,3],[112,2,112,3],[113,2,113,3],[114,2,114,3],[115,2,115,3],[126,2,126,3],[127,2,127,3],[128,2,128,3],[129,2,129,3],[130,2,130,3],[121,2,121,3],[122,2,122,3],[123,2,123,3],[124,2,124,3],[125,2,125,3],[136,2,136,3],[137,2,137,3],[138,2,138,3],[139,2,139,3],[140,2,140,3],[131,2,131,3],[132,2,132,3],[133,2,133,3],[134,2,134,3],[135,2,135,3],[146,2,146,3],[147,2,147,3],[148,2,148,3],[149,2,149,3],[150,2,150,3],[141,2,141,3],[142,2,142,3],[143,2,143,3],[144,2,144,3],[145,2,145,3],[156,2,156,3],[157,2,157,3],[158,2,158,3],[159,2,159,3],[160,2,160,3],[151,2,151,3],[152,2,152,3],[153,2,153,3],[154,2,154,3],[155,2,155,3],[166,2,166,3],[167,2,167,3],[168,2,168,3],[169,2,169,3],[170,2,170,3],[161,2,161,3],[162,2,162,3],[163,2,163,3],[164,2,164,3],[165,2,165,3],[176,2,176,3],[177,2,177,3],[178,2,178,3],[179,2,179,3],[180,2,180,3],[171,2,171,3],[172,2,172,3],[173,2,173,3],[174,2,174,3],[175,2,175,3],[186,2,186,3],[187,2,187,3],[188,2,188,3],[189,2,189,3],[190,2,190,3],[181,2,181,3],[182,2,182,3],[183,2,183,3],[184,2,184,3],[185,2,185,3],[196,2,196,3],[197,2,197,3],[198,2,198,3],[199,2,199,3],[191,2,191,3],[192,2,192,3],[193,2,193,3],[194,2,194,3],[195,2,195,3],[200,2,200,3],[201,2,201,3],[202,2,202,3],[203,2,203,3],[204,2,204,3],[205,2,205,3],[206,2,206,3],[207,2,207,3],[208,2,208,3],[209,2,209,3],[210,2,210,3],[211,2,211,3],[212,2,212,3],[213,2,213,3],[214,2,214,3],[215,2,215,3],[216,2,216,3],[217,2,217,3],[218,2,218,3],[219,2,219,3],[220,2,220,3],[221,2,221,3],[222,2,222,3],[223,2,223,3],[224,2,224,3],[225,2,225,3],[226,2,226,3],[227,2,227,3],[228,2,228,3],[229,2,229,3],[230,2,230,3],[231,2,231,3],[232,2,232,3],[233,2,233,3],[234,2,234,3],[235,2,235,3],[236,2,236,3],[237,2,237,3],[238,2,238,3],[239,2,239,3],[240,2,240,3],[241,2,241,3],[242,2,242,3],[243,2,243,3],[244,2,244,3],[245,2,245,3],[246,2,246,3],[247,2,247,3],[248,2,248,3],[249,2,249,3],[250,2,250,3],[251,2,251,3],[252,2,252,3],[253,2,253,3],[254,2,254,3],[255,2,255,3],[256,2,256,3],[257,2,257,3],[258,2,258,3],[259,2,259,3],[260,2,260,3],[261,2,261,3],[262,2,262,3],[263,2,263,3],[264,2,264,3],[265,2,265,3],[266,2,266,3],[267,2,267,3],[268,2,268,3],[269,2,269,3],[270,2,270,3],[271,2,271,3],[272,2,272,3],[273,2,273,3],[274,2,274,3],[275,2,275,3],[276,2,276,3],[277,2,277,3],[278,2,278,3],[279,2,279,3],[280,2,280,3],[281,2,281,3],[282,2,282,3],[283,2,283,3],[284,2,284,3],[285,2,285,3],[286,2,286,3],[287,2,287,3],[288,2,288,3],[289,2,289,3],[290,2,290,3],[291,2,291,3],[292,2,292,3],[293,2,293,3],[294,2,294,3],[295,2,295,3],[296,2,296,3],[297,2,297,3],[298,2,298,3],[299,2,299,3],[300,2,300,3],[301,2,301,3],[302,2,302,3],[303,2,303,3],[304,2,304,3],[305,2,305,3],[306,2,306,3],[307,2,307,3],[308,2,308,3],[309,2,309,3],[310,2,310,3],[311,2,311,3],[312,2,312,3],[313,2,313,3],[314,2,314,3],[315,2,315,3],[316,2,316,3],[317,2,317,3],[318,2,318,3],[319,2,319,3],[320,2,320,3],[321,2,321,3],[322,2,322,3],[323,2,323,3],[324,2,324,3],[325,2,325,3],[326,2,326,3],[327,2,327,3],[328,2,328,3],[329,2,329,3],[330,2,330,3],[331,2,331,3],[332,2,332,3],[333,2,333,3],[334,2,334,3],[335,2,335,3],[336,2,336,3],[337,2,337,3],[338,2,338,3],[339,2,339,3],[340,2,340,3],[341,2,341,3],[342,2,342,3],[343,2,343,3],[344,2,344,3],[345,2,345,3],[346,2,346,3],[347,2,347,3],[348,2,348,3],[349,2,349,3],[350,2,350,3],[351,2,351,3],[352,2,352,3],[353,2,353,3],[354,2,354,3],[355,2,355,3],[356,2,356,3],[357,2,357,3],[358,2,358,3],[359,2,359,3],[360,2,360,3],[361,2,361,3],[362,2,362,3],[363,2,363,3],[364,2,364,3],[365,2,365,3],[366,2,366,3],[367,2,367,3],[368,2,368,3],[369,2,369,3],[370,2,370,3],[371,2,371,3],[372,2,372,3],[373,2,373,3],[374,2,374,3],[375,2,375,3],[376,2,376,3],[377,2,377,3],[378,2,378,3],[379,2,379,3],[380,2,380,3],[381,2,381,3],[382,2,382,3],[383,2,383,3],[384,2,384,3],[385,2,385,3],[386,2,386,3],[387,2,387,3],[388,2,388,3],[389,2,389,3],[390,2,390,3],[391,2,391,3],[392,2,392,3],[393,2,393,3],[394,2,394,3],[395,2,395,3],[396,2,396,3],[397,2,397,3],[398,2,398,3],[399,2,399,3],[400,2,400,3],[401,2,401,3],[402,2,402,3],[403,2,403,3],[404,2,404,3],[405,2,405,3],[406,2,406,3],[407,2,407,3],[408,2,408,3],[409,2,409,3],[410,2,410,3],[411,2,411,3],[412,2,412,3],[413,2,413,3],[414,2,414,3],[415,2,415,3],[416,2,416,3],[417,2,417,3],[418,2,418,3],[419,2,419,3],[420,2,420,3],[421,2,421,3],[422,2,422,3],[423,2,423,3],[424,2,424,3],[425,2,425,3],[426,2,426,3],[427,2,427,3],[428,2,428,3],[429,2,429,3],[430,2,430,3],[431,2,431,3],[432,2,432,3],[433,2,433,3],[434,2,434,3],[435,2,435,3],[436,2,436,3],[437,2,437,3],[438,2,438,3],[439,2,439,3],[440,2,440,3],[441,2,441,3],[442,2,442,3],[443,2,443,3],[444,2,444,3],[445,2,445,3],[446,2,446,3],[447,2,447,3],[448,2,448,3],[449,2,449,3],[450,2,450,3],[451,2,451,3],[452,2,452,3],[453,2,453,3],[454,2,454,3],[455,2,455,3],[456,2,456,3],[457,2,457,3],[458,2,458,3],[459,2,459,3],[460,2,460,3],[461,2,461,3],[462,2,462,3],[463,2,463,3],[464,2,464,3],[465,2,465,3],[466,2,466,3],[467,2,467,3],[468,2,468,3],[469,2,469,3],[470,2,470,3],[471,2,471,3],[472,2,472,3],[473,2,473,3],[474,2,474,3],[475,2,475,3],[476,2,476,3],[477,2,477,3],[478,2,478,3],[479,2,479,3],[480,2,480,3],[481,2,481,3],[482,2,482,3],[483,2,483,3],[484,2,484,3],[485,2,485,3],[486,2,486,3],[487,2,487,3],[488,2,488,3],[489,2,489,3],[490,2,490,3],[491,2,491,3],[492,2,492,3],[493,2,493,3],[494,2,494,3],[495,2,495,3],[496,2,496,3],[497,2,497,3],[498,2,498,3],[499,2,499,3],[500,2,500,3],[501,2,501,3],[502,2,502,3],[503,2,503,3],[504,2,504,3],[505,2,505,3],[506,2,506,3],[507,2,507,3],[508,2,508,3],[509,2,509,3],[510,2,510,3],[511,2,511,3],[512,2,512,3],[513,2,513,3],[514,2,514,3],[515,2,515,3],[516,2,516,3],[517,2,517,3],[518,2,518,3],[519,2,519,3],[520,2,520,3],[521,2,521,3],[522,2,522,3],[523,2,523,3],[524,2,524,3],[525,2,525,3],[526,2,526,3],[527,2,527,3],[528,2,528,3],[529,2,529,3],[530,2,530,3],[531,2,531,3],[532,2,532,3],[533,2,533,3],[534,2,534,3],[535,2,535,3],[536,2,536,3],[537,2,537,3],[538,2,538,3],[539,2,539,3],[540,2,540,3],[541,2,541,3],[542,2,542,3],[543,2,543,3],[544,2,544,3],[545,2,545,3],[546,2,546,3],[547,2,547,3],[548,2,548,3],[549,2,549,3],[550,2,550,3],[551,2,551,3],[552,2,552,3],[553,2,553,3],[554,2,554,3],[555,2,555,3],[556,2,556,3],[557,2,557,3],[558,2,558,3],[559,2,559,3],[560,2,560,3],[561,2,561,3],[562,2,562,3],[563,2,563,3],[564,2,564,3],[565,2,565,3],[566,2,566,3],[567,2,567,3],[568,2,568,3],[569,2,569,3],[570,2,570,3],[571,2,571,3],[572,2,572,3],[573,2,573,3],[574,2,574,3],[575,2,575,3],[576,2,576,3],[577,2,577,3],[578,2,578,3],[579,2,579,3],[580,2,580,3],[581,2,581,3],[582,2,582,3],[583,2,583,3],[584,2,584,3],[585,2,585,3],[586,2,586,3],[587,2,587,3],[588,2,588,3],[589,2,589,3],[590,2,590,3],[591,2,591,3],[592,2,592,3],[593,2,593,3],[594,2,594,3],[595,2,595,3],[596,2,596,3],[597,2,597,3],[598,2,598,3],[599,2,599,3],[600,2,600,3],[601,2,601,3],[602,2,602,3],[603,2,603,3],[604,2,604,3],[605,2,605,3],[606,2,606,3],[607,2,607,3],[608,2,608,3],[609,2,609,3],[610,2,610,3],[611,2,611,3],[612,2,612,3],[613,2,613,3],[614,2,614,3],[615,2,615,3],[616,2,616,3],[617,2,617,3],[618,2,618,3],[619,2,619,3],[620,2,620,3],[621,2,621,3],[622,2,622,3],[623,2,623,3],[624,2,624,3],[625,2,625,3],[626,2,626,3],[627,2,627,3],[628,2,628,3],[629,2,629,3],[630,2,630,3],[631,2,631,3],[632,2,632,3],[633,2,633,3],[634,2,634,3],[635,2,635,3],[636,2,636,3],[637,2,637,3],[638,2,638,3],[639,2,639,3],[640,2,640,3],[641,2,641,3],[642,2,642,3],[643,2,643,3],[644,2,644,3],[645,2,645,3],[646,2,646,3],[647,2,647,3],[648,2,648,3],[649,2,649,3],[650,2,650,3],[651,2,651,3],[652,2,652,3],[653,2,653,3],[654,2,654,3],[655,2,655,3],[656,2,656,3],[657,2,657,3],[658,2,658,3],[659,2,659,3],[660,2,660,3],[661,2,661,3],[662,2,662,3],[663,2,663,3],[664,2,664,3],[665,2,665,3],[666,2,666,3],[667,2,667,3],[668,2,668,3],[669,2,669,3],[670,2,670,3],[671,2,671,3],[672,2,672,3],[673,2,673,3],[674,2,674,3],[675,2,675,3],[676,2,676,3],[677,2,677,3],[678,2,678,3],[679,2,679,3],[680,2,680,3],[681,2,681,3],[682,2,682,3],[683,2,683,3],[684,2,684,3],[685,2,685,3],[686,2,686,3],[687,2,687,3],[688,2,688,3],[689,2,689,3],[690,2,690,3],[691,2,691,3],[692,2,692,3],[693,2,693,3],[694,2,694,3],[695,2,695,3],[696,2,696,3],[697,2,697,3],[698,2,698,3],[699,2,699,3],[700,2,700,3],[701,2,701,3],[702,2,702,3],[703,2,703,3],[704,2,704,3],[705,2,705,3],[706,2,706,3],[707,2,707,3],[708,2,708,3],[709,2,709,3],[710,2,710,3],[711,2,711,3],[712,2,712,3],[713,2,713,3],[714,2,714,3],[715,2,715,3],[716,2,716,3],[717,2,717,3],[718,2,718,3],[719,2,719,3],[720,2,720,3],[721,2,721,3],[722,2,722,3],[723,2,723,3],[724,2,724,3],[725,2,725,3],[726,2,726,3],[727,2,727,3],[728,2,728,3],[729,2,729,3],[730,2,730,3],[731,2,731,3],[732,2,732,3],[733,2,733,3],[734,2,734,3],[735,2,735,3],[736,2,736,3],[737,2,737,3],[738,2,738,3],[739,2,739,3],[740,2,740,3],[741,2,741,3],[742,2,742,3],[743,2,743,3],[744,2,744,3],[745,2,745,3],[746,2,746,3],[747,2,747,3],[748,2,748,3],[749,2,749,3],[750,2,750,3],[751,2,751,3],[752,2,752,3],[753,2,753,3],[754,2,754,3],[755,2,755,3],[756,2,756,3],[757,2,757,3],[758,2,758,3],[759,2,759,3],[760,2,760,3],[761,2,761,3],[762,2,762,3],[763,2,763,3],[764,2,764,3],[765,2,765,3],[766,2,766,3],[767,2,767,3],[768,2,768,3],[769,2,769,3],[770,2,770,3],[771,2,771,3],[772,2,772,3],[773,2,773,3],[774,2,774,3],[775,2,775,3],[776,2,776,3],[777,2,777,3],[778,2,778,3],[779,2,779,3],[780,2,780,3],[781,2,781,3],[782,2,782,3],[783,2,783,3],[784,2,784,3],[785,2,785,3],[786,2,786,3],[787,2,787,3],[788,2,788,3],[789,2,789,3],[790,2,790,3],[791,2,791,3],[792,2,792,3],[793,2,793,3],[803,2,803,3],[804,2,804,3],[805,2,805,3],[806,2,806,3],[807,2,807,3],[808,2,808,3],[809,2,809,3],[794,2,794,3],[795,2,795,3],[796,2,796,3],[797,2,797,3],[798,2,798,3],[799,2,799,3],[800,2,800,3],[801,2,801,3],[802,2,802,3]]}
[null,null,"REGISTRE DECHETS NON DANGEREUX\n((Arrêté du 29 février 2012 fixant le contenu des registres mentionnés aux articles R. 541-43 et R. 541-46 du code de l'environnement ))"]
["Date d'enlèvement","Nature du déchets","Quantité de déchets (en kg)",null,"Installation de destination (nom et adresse)","Transporteur ","Fiche d'intervention"]
[null,null,null,null,{"$f":"IF(B3=\"TV\",\"Véolia Nice Tri - Parc d'activité logistique\",IF(B3=\"DV\",\"Orédui Carros Compostage - ZI de la Grave\",IF(B3=\"GP\",\"La Gaude K3 Sita Sud - 5211 Rte de St Jeannet\",IF(B3=\"GS\",\"Véolia Nice Tri - 20 Ch du Saquier\",IF(B3=\"B\",\"SEAS La Glacière - 1019 Rte de la Grasse\",IF(B3=\"M\",\"Carros\",IF(B3=\"N\",\"Sofovar - 126 Av Louis Lépine - 83600 Fréjus\")))))))","v":false},{"$f":"IF(OR(B3=\"TV\",B3=\"DV\",B3=\"GS\",B3=\"GP\",B3=\"B\"),\"SUEZ\",IF(OR(B3=\"M\"),\"DERICHEBOURG\",IF(OR(B3=\"N\"),\"SOFOVAR\")))","v":false}]
[null,null,null,null,{"$f":"IF(B4=\"TV\",\"Véolia Nice Tri - Parc d'activité logistique\",IF(B4=\"DV\",\"Orédui Carros Compostage - ZI de la Grave\",IF(B4=\"GP\",\"La Gaude K3 Sita Sud - 5211 Rte de St Jeannet\",IF(B4=\"GS\",\"Véolia Nice Tri - 20 Ch du Saquier\",IF(B4=\"B\",\"SEAS La Glacière - 1019 Rte de la Grasse\",IF(B4=\"M\",\"Carros\",IF(B4=\"N\",\"Sofovar - 126 Av Louis Lépine - 83600 Fréjus\")))))))","v":false},{"$f":"IF(OR(B4=\"TV\",B4=\"DV\",B4=\"GS\",B4=\"GP\",B4=\"B\"),\"SUEZ\",IF(OR(B4=\"M\"),\"DERICHEBOURG\"))","v":false},null,null,null,null,null,null,null,"Nature du \ndéchets"]
[null,null,null,null,false,false,null,null,null,null,null,null,null,"TOUT VENANT"]
[null,null,null,null,false,false,null,null,null,null,null,null,null,"DECHETS VERTS"]
[null,null,null,null,false,false,null,null,null,null,null,null,null,"GRAVATS PROPRE"]
[null,null,null,null,false,false,null,null,null,null,null,null,null,"GRAVATS SALES"]
[null,null,null,null,false,false,null,null,null,null,null,null,null,"METAUX"]
[null,null,null,null,false,false,null,null,null,null,null,null,null,"BOIS"]
[null,null,null,null,false,false,null,null,null,null,null,null,null,"NEONS"]
[null,null,null,null,false,{"$f":"IF(OR(B12=\"TV\",B12=\"DV\",B12=\"GS\",B12=\"GP\",B12=\"B\"),\"SUEZ\",IF(OR(B12=\"M\"),\"DERICHEBOURG\"))","v":false},null,null,null,null,null,null,null,"AMPOULES"]
[null,null,null,null,false,false,null,null,null,null,null,null,null,"HUILES VIDANGE"]
[null,null,null,null,false,false,null,null,null,null,null,null,null,"HUILES VEGETALES"]
[null,null,null,null,false,false,null,null,null,null,null,null,null,"PILES"]
[null,null,null,null,false,{"$f":"IF(OR(B16=\"TV\",B16=\"DV\",B16=\"GS\",B16=\"GP\",B16=\"B\"),\"SUEZ\",IF(OR(B16=\"M\"),\"DERICHEBOURG\"))","v":false},null,null,null,null,null,null,null,"PNEUS"]
[null,null,null,null,false,false,null,null,null,null,null,null,null,"CARTOUCHES"]
[null,null,null,null,false,false,null,null,null,null,null,null,null,"PEINTURES"]
[null,null,null,null,false,false,null,null,null,null,null,null,null,"PAM"]
[null,null,null,null,false,false,null,null,null,null,null,null,null,"ECRANS"]
[null,null,null,null,false,false]
[null,null,null,null,false,false]
[null,null,null,null,false,false]
[null,null,null,null,false,false]
[null,null,null,null,false,false]
[null,null,null,null,false,false]
[null,null,null,null,false,false]
[null,null,null,null,false,false]
[null,null,null,null,false,false]
[null,null,null,null,false,false]
[null,null,null,null,false,false]
[null,null,null,null,false,false]
[null,null,null,null,false,false]
[null,null,null,null,false,false]
[null,null,null,null,false,false]
[null,null,null,null,false,false]
[null,null,null,null,false,false]
[null,null,null,null,false,false]
[null,null,null,null,false,false]
[null,null,null,null,false,false]
[null,null,null,null,false,false]
[null,null,null,null,false,false]
[null,null,null,null,false,false]
[null,null,null,null,false,false]
[null,null,null,null,false,false]
[null,null,null,null,false,false]
[null,null,null,null,false,false]
[null,null,null,null,false,false]
[null,null,null,null,false,false]
[null,null,null,null,false,false]
[null,null,null,null,false,false]
[null,null,null,null,false,false]
[null,null,null,null,false,false]
[null,null,null,null,false,false]
[null,null,null,null,false,false]
[null,null,null,null,false,false]
[null,null,null,null,false,{"$f":"IF(OR(B57=\"TV\",B57=\"DV\",B57=\"GS\",B57=\"GP\",B57=\"B\"),\"SUEZ\",IF(OR(B57=\"M\"),\"DERICHEBOURG\"))","v":false}]
[null,null,null,null,false,false]
[null,null,null,null,false,false]
[null,null,null,null,false,false]
[null,null,null,null,false,false]
[null,null,null,null,false,false]
[null,null,null,null,false,false]
[null,null,null,null,false,false]
[null,null,null,null,false,false]
[null,null,null,null,false,false]
[null,null,null,null,false,false]
[null,null,null,null,{"$f":"IF(B68=\"TV\",\"Véolia Nice Tri - Parc d'activité logistique\",IF(B68=\"DV\",\"Orédui Carros Compostage - ZI de la Grave\",IF(B68=\"GP\",\"La Gaude K3 Sita Sud - 5211 Rte de St Jeannet\",IF(B68=\"GS\",\"Véolia Nice Tri - 20 Ch du Saquier\",IF(B68=\"B\",\"SEAS La Glacière - 1019 Rte de la Grasse\",IF(B68=\"M\",\"Carros\",IF(B68=\"N\",\"Sofovar - 126 Av Louis Lépine - 83600 Fréjus\")))))))","v":false},false]
[null,null,null,null,false,false]
[null,null,null,null,false,false]
[null,null,null,null,false,false]
[null,null,null,null,false,false]
[null,null,null,null,false,false]
[null,null,null,null,false,false]
[null,null,null,null,false,false]
[null,null,null,null,false,false]
[null,null,null,null,false,{"$f":"IF(OR(B77=\"TV\",B77=\"DV\",B77=\"GS\",B77=\"GP\",B77=\"B\"),\"SUEZ\",IF(OR(B77=\"M\"),\"DERICHEBOURG\"))","v":false}]
[null,null,null,null,false,false]
[null,null,null,null,false,false]
[null,null,null,null,false,false]
[null,null,null,null,false,false]
[null,null,null,null,false,false]
[null,null,null,null,false,false]
[null,null,null,null,false,false]
[null,null,null,null,false,false]
[null,null,null,null,false,false]
[null,null,null,null,false,false]
[null,null,null,null,false,false]
[null,null,null,null,false,false]
[null,null,null,null,false,false]
[null,null,null,null,false,false]
[null,null,null,null,false,false]
[null,null,null,null,false,false]
[null,null,null,null,false,false]
[null,null,null,null,false,false]
[null,null,null,null,false,false]
[null,null,null,null,false,false]
[null,null,null,null,false,false]
[null,null,null,null,false,false]
[null,null,null,null,false,false]
[null,null,null,null,false,false]
[null,null,null,null,false,false]
[null,null,null,null,false,false]
[null,null,null,null,false,false]
[null,null,null,null,false,false]
[null,null,null,null,false,false]
[null,null,null,null,false,false]
[null,null,null,null,false,false]
[null,null,null,null,false,false]
[null,null,null,null,false,false]
[null,null,null,null,false,false]
[null,null,null,null,false,false]
[null,null,null,null,false,false]
[null,null,null,null,false,false]
[null,null,null,null,false,false]
[null,null,null,null,false,false]
[null,null,null,null,false,false]
[null,null,null,null,false,false]
[null,null,null,null,false,false]
[null,null,null,null,false,false]
[null,null,null,null,false,false]
[null,null,null,null,false,false]
[null,null,null,null,false,false]
[null,null,null,null,false,false]
[null,null,null,null,false,false]
[null,null,null,null,false,false]
[null,null,null,null,false,false]
[null,null,null,null,false,false]
[null,null,null,null,false,false]
[null,null,null,null,false,false]
[null,null,null,null,false,false]
[null,null,null,null,{"$f":"IF(B132=\"TV\",\"Véolia Nice Tri - Parc d'activité logistique\",IF(B132=\"DV\",\"Orédui Carros Compostage - ZI de la Grave\",IF(B132=\"GP\",\"La Gaude K3 Sita Sud - 5211 Rte de St Jeannet\",IF(B132=\"GS\",\"Véolia Nice Tri - 20 Ch du Saquier\",IF(B132=\"B\",\"SEAS La Glacière - 1019 Rte de la Grasse\",IF(B132=\"M\",\"Carros\",IF(B132=\"N\",\"Sofovar - 126 Av Louis Lépine - 83600 Fréjus\")))))))","v":false},false]
[null,null,null,null,false,false]
[null,null,null,null,false,false]
[null,null,null,null,false,false]
[null,null,null,null,false,false]
[null,null,null,null,false,false]
[null,null,null,null,false,false]
[null,null,null,null,false,false]
[null,null,null,null,false,false]
[null,null,null,null,false,{"$f":"IF(OR(B141=\"TV\",B141=\"DV\",B141=\"GS\",B141=\"GP\",B141=\"B\"),\"SUEZ\",IF(OR(B141=\"M\"),\"DERICHEBOURG\"))","v":false}]
[null,null,null,null,false,false]
[null,null,null,null,false,false]
[null,null,null,null,false,false]
[null,null,null,null,false,false]
[null,null,null,null,false,false]
[null,null,null,null,false,false]
[null,null,null,null,false,false]
[null,null,null,null,false,false]
[null,null,null,null,false,false]
[null,null,null,null,false,false]
[null,null,null,null,false,false]
[null,null,null,null,false,false]
[null,null,null,null,false,false]
[null,null,null,null,false,false]
[null,null,null,null,false,false]
[null,null,null,null,false,false]
[null,null,null,null,false,false]
[null,null,null,null,false,false]
[null,null,null,null,false,false]
[null,null,null,null,false,false]
[null,null,null,null,false,false]
[null,null,null,null,false,false]
[null,null,null,null,false,false]
[null,null,null,null,false,false]
[null,null,null,null,false,false]
[null,null,null,null,false,false]
[null,null,null,null,false,false]
[null,null,null,null,false,false]
[null,null,null,null,false,false]
[null,null,null,null,false,false]
[null,null,null,null,false,false]
[null,null,null,null,false,false]
[null,null,null,null,false,false]
[null,null,null,null,false,false]
[null,null,null,null,false,false]
[null,null,null,null,false,false]
[null,null,null,null,false,false]
[null,null,null,null,false,false]
[null,null,null,null,false,false]
[null,null,null,null,false,false]
[null,null,null,null,false,false]
[null,null,null,null,false,false]
[null,null,null,null,false,false]
[null,null,null,null,false,false]
[null,null,null,null,false,false]
[null,null,null,null,false,false]
[null,null,null,null,false,false]
[null,null,null,null,false,false]
[null,null,null,null,false,false]
[null,null,null,null,false,false]
[null,null,null,null,false,false]
[null,null,null,null,false,false]
[null,null,null,null,false,false]
[null,null,null,null,false,false]
[null,null,null,null,{"$f":"IF(B196=\"TV\",\"Véolia Nice Tri - Parc d'activité logistique\",IF(B196=\"DV\",\"Orédui Carros Compostage - ZI de la Grave\",IF(B196=\"GP\",\"La Gaude K3 Sita Sud - 5211 Rte de St Jeannet\",IF(B196=\"GS\",\"Véolia Nice Tri - 20 Ch du Saquier\",IF(B196=\"B\",\"SEAS La Glacière - 1019 Rte de la Grasse\",IF(B196=\"M\",\"Carros\",IF(B196=\"N\",\"Sofovar - 126 Av Louis Lépine - 83600 Fréjus\")))))))","v":false},false]
[null,null,null,null,false,false]
[null,null,null,null,false,false]
[null,null,null,null,false,false]
[null,null,null,null,false,false]
[null,null,null,null,false,false]
[null,null,null,null,false,false]
[null,null,null,null,false,false]
[null,null,null,null,false,false]
[null,null,null,null,false,{"$f":"IF(OR(B205=\"TV\",B205=\"DV\",B205=\"GS\",B205=\"GP\",B205=\"B\"),\"SUEZ\",IF(OR(B205=\"M\"),\"DERICHEBOURG\"))","v":false}]
[null,null,null,null,false,false]
[null,null,null,null,false,false]
[null,null,null,null,false,false]
[null,null,null,null,false,false]
[null,null,null,null,false,false]
[null,null,null,null,false,false]
[null,null,null,null,false,false]
[null,null,null,null,false,false]
[null,null,null,null,false,false]
[null,null,null,null,false,false]
[null,null,null,null,false,false]
[null,null,null,null,false,false]
[null,null,null,null,false,false]
[null,null,null,null,false,false]
[null,null,null,null,false,false]
[null,null,null,null,false,false]
[null,null,null,null,false,false]
[null,null,null,null,false,false]
[null,null,null,null,false,false]
[null,null,null,null,false,false]
[null,null,null,null,false,false]
[null,null,null,null,false,false]
[null,null,null,null,false,false]
[null,null,null,null,false,false]
[null,null,null,null,false,false]
[null,null,null,null,false,false]
[null,null,null,null,false,false]
[null,null,null,null,false,false]
[null,null,null,null,false,false]
[null,null,null,null,false,false]
[null,null,null,null,false,false]
[null,null,null,null,false,false]
[null,null,null,null,false,false]
[null,null,null,null,false,false]
[null,null,null,null,false,false]
[null,null,null,null,false,false]
[null,null,null,null,false,false]
[null,null,null,null,false,false]
[null,null,null,null,false,false]
[null,null,null,null,false,false]
[null,null,null,null,false,false]
[null,null,null,null,false,false]
[null,null,null,null,false,false]
[null,null,null,null,false,false]
[null,null,null,null,false,false]
[null,null,null,null,false,false]
[null,null,null,null,false,false]
[null,null,null,null,false,false]
[null,null,null,null,false,false]
[null,null,null,null,false,false]
[null,null,null,null,false,false]
[null,null,null,null,false,false]
[null,null,null,null,false,false]
[null,null,null,null,false,false]
[null,null,null,null,{"$f":"IF(B260=\"TV\",\"Véolia Nice Tri - Parc d'activité logistique\",IF(B260=\"DV\",\"Orédui Carros Compostage - ZI de la Grave\",IF(B260=\"GP\",\"La Gaude K3 Sita Sud - 5211 Rte de St Jeannet\",IF(B260=\"GS\",\"Véolia Nice Tri - 20 Ch du Saquier\",IF(B260=\"B\",\"SEAS La Glacière - 1019 Rte de la Grasse\",IF(B260=\"M\",\"Carros\",IF(B260=\"N\",\"Sofovar - 126 Av Louis Lépine - 83600 Fréjus\")))))))","v":false},false]
[null,null,null,null,false,false]
[null,null,null,null,false,false]
[null,null,null,null,false,false]
[null,null,null,null,false,false]
[null,null,null,null,false,false]
[null,null,null,null,false,false]
[null,null,null,null,false,false]
[null,null,null,null,false,false]
[null,null,null,null,false,{"$f":"IF(OR(B269=\"TV\",B269=\"DV\",B269=\"GS\",B269=\"GP\",B269=\"B\"),\"SUEZ\",IF(OR(B269=\"M\"),\"DERICHEBOURG\"))","v":false}]
[null,null,null,null,false,false]
[null,null,null,null,false,false]
[null,null,null,null,false,false]
[null,null,null,null,false,false]
[null,null,null,null,false,false]
[null,null,null,null,false,false]
[null,null,null,null,false,false]
[null,null,null,null,false,false]
[null,null,null,null,false,false]
[null,null,null,null,false,false]
[null,null,null,null,false,false]
[null,null,null,null,false,false]
[null,null,null,null,false,false]
[null,null,null,null,false,false]
[null,null,null,null,false,false]
[null,null,null,null,false,false]
[null,null,null,null,false,false]
[null,null,null,null,false,false]
[null,null,null,null,false,false]
[null,null,null,null,false,false]
[null,null,null,null,false,false]
[null,null,null,null,false,false]
[null,null,null,null,false,false]
[null,null,null,null,false,false]
[null,null,null,null,false,false]
[null,null,null,null,false,false]
[null,null,null,null,false,false]
[null,null,null,null,false,false]
[null,null,null,null,false,false]
[null,null,null,null,false,false]
[null,null,null,null,false,false]
[null,null,null,null,false,false]
[null,null,null,null,false,false]
[null,null,null,null,false,false]
[null,null,null,null,false,false]
[null,null,null,null,false,false]
[null,null,null,null,false,false]
[null,null,null,null,false,false]
[null,null,null,null,false,false]
[null,null,null,null,false,false]
[null,null,null,null,false,false]
[null,null,null,null,false,false]
[null,null,null,null,false,false]
[null,null,null,null,false,false]
[null,null,null,null,false,false]
[null,null,null,null,false,false]
[null,null,null,null,false,false]
[null,null,null,null,false,false]
[null,null,null,null,false,false]
[null,null,null,null,false,false]
[null,null,null,null,false,false]
[null,null,null,null,false,false]
[null,null,null,null,false,false]
[null,null,null,null,false,false]
[null,null,null,null,{"$f":"IF(B324=\"TV\",\"Véolia Nice Tri - Parc d'activité logistique\",IF(B324=\"DV\",\"Orédui Carros Compostage - ZI de la Grave\",IF(B324=\"GP\",\"La Gaude K3 Sita Sud - 5211 Rte de St Jeannet\",IF(B324=\"GS\",\"Véolia Nice Tri - 20 Ch du Saquier\",IF(B324=\"B\",\"SEAS La Glacière - 1019 Rte de la Grasse\",IF(B324=\"M\",\"Carros\",IF(B324=\"N\",\"Sofovar - 126 Av Louis Lépine - 83600 Fréjus\")))))))","v":false},false]
[null,null,null,null,false,false]
[null,null,null,null,false,false]
[null,null,null,null,false,false]
[null,null,null,null,false,false]
[null,null,null,null,false,false]
[null,null,null,null,false,false]
[null,null,null,null,false,false]
[null,null,null,null,false,false]
[null,null,null,null,false,{"$f":"IF(OR(B333=\"TV\",B333=\"DV\",B333=\"GS\",B333=\"GP\",B333=\"B\"),\"SUEZ\",IF(OR(B333=\"M\"),\"DERICHEBOURG\"))","v":false}]
[null,null,null,null,false,false]
[null,null,null,null,false,false]
[null,null,null,null,false,false]
[null,null,null,null,false,false]
[null,null,null,null,false,false]
[null,null,null,null,false,false]
[null,null,null,null,false,false]
[null,null,null,null,false,false]
[null,null,null,null,false,false]
[null,null,null,null,false,false]
[null,null,null,null,false,false]
[null,null,null,null,false,false]
[null,null,null,null,false,false]
[null,null,null,null,false,false]
[null,null,null,null,false,false]
[null,null,null,null,false,false]
[null,null,null,null,false,false]
[null,null,null,null,false,false]
[null,null,null,null,false,false]
[null,null,null,null,false,false]
[null,null,null,null,false,false]
[null,null,null,null,false,false]
[null,null,null,null,false,false]
[null,null,null,null,false,false]
[null,null,null,null,false,false]
[null,null,null,null,false,false]
[null,null,null,null,false,false]
[null,null,null,null,false,false]
[null,null,null,null,false,false]
[null,null,null,null,false,false]
[null,null,null,null,false,false]
[null,null,null,null,false,false]
[null,null,null,null,false,false]
[null,null,null,null,false,false]
[null,null,null,null,false,false]
[null,null,null,null,false,false]
[null,null,null,null,false,false]
[null,null,null,null,false,false]
[null,null,null,null,false,false]
[null,null,null,null,false,false]
[null,null,null,null,false,false]
[null,null,null,null,false,false]
[null,null,null,null,false,false]
[null,null,null,null,false,false]
[null,null,null,null,false,false]
[null,null,null,null,false,false]
[null,null,null,null,false,false]
[null,null,null,null,false,false]
[null,null,null,null,false,false]
[null,null,null,null,false,false]
[null,null,null,null,false,false]
[null,null,null,null,false,false]
[null,null,null,null,false,false]
[null,null,null,null,false,false]
[null,null,null,null,{"$f":"IF(B388=\"TV\",\"Véolia Nice Tri - Parc d'activité logistique\",IF(B388=\"DV\",\"Orédui Carros Compostage - ZI de la Grave\",IF(B388=\"GP\",\"La Gaude K3 Sita Sud - 5211 Rte de St Jeannet\",IF(B388=\"GS\",\"Véolia Nice Tri - 20 Ch du Saquier\",IF(B388=\"B\",\"SEAS La Glacière - 1019 Rte de la Grasse\",IF(B388=\"M\",\"Carros\",IF(B388=\"N\",\"Sofovar - 126 Av Louis Lépine - 83600 Fréjus\")))))))","v":false},false]
[null,null,null,null,false,false]
[null,null,null,null,false,false]
[null,null,null,null,false,false]
[null,null,null,null,false,false]
[null,null,null,null,false,false]
[null,null,null,null,false,false]
[null,null,null,null,false,false]
[null,null,null,null,false,false]
[null,null,null,null,false,{"$f":"IF(OR(B397=\"TV\",B397=\"DV\",B397=\"GS\",B397=\"GP\",B397=\"B\"),\"SUEZ\",IF(OR(B397=\"M\"),\"DERICHEBOURG\"))","v":false}]
[null,null,null,null,false,false]
[null,null,null,null,false,false]
[null,null,null,null,false,false]
[null,null,null,null,false,false]
[null,null,null,null,false,false]
[null,null,null,null,false,false]
[null,null,null,null,false,false]
[null,null,null,null,false,false]
[null,null,null,null,false,false]
[null,null,null,null,false,false]
[null,null,null,null,false,false]
[null,null,null,null,false,false]
[null,null,null,null,false,false]
[null,null,null,null,false,false]
[null,null,null,null,false,false]
[null,null,null,null,false,false]
[null,null,null,null,false,false]
[null,null,null,null,false,false]
[null,null,null,null,false,false]
[null,null,null,null,false,false]
[null,null,null,null,false,false]
[null,null,null,null,false,false]
[null,null,null,null,false,false]
[null,null,null,null,false,false]
[null,null,null,null,false,false]
[null,null,null,null,false,false]
[null,null,null,null,false,false]
[null,null,null,null,false,false]
[null,null,null,null,false,false]
[null,null,null,null,false,false]
[null,null,null,null,false,false]
[null,null,null,null,false,false]
[null,null,null,null,false,false]
[null,null,null,null,false,false]
[null,null,null,null,false,false]
[null,null,null,null,false,false]
[null,null,null,null,false,false]
[null,null,null,null,false,false]
[null,null,null,null,false,false]
[null,null,null,null,false,false]
[null,null,null,null,false,false]
[null,null,null,null,false,false]
[null,null,null,null,false,false]
[null,null,null,null,false,false]
[null,null,null,null,false,false]
[null,null,null,null,false,false]
[null,null,null,null,false,false]
[null,null,null,null,false,false]
[null,null,null,null,false,false]
[null,null,null,null,false,false]
[null,null,null,null,false,false]
[null,null,null,null,false,false]
[null,null,null,null,false,false]
[null,null,null,null,false,false]
[null,null,null,null,{"$f":"IF(B452=\"TV\",\"Véolia Nice Tri - Parc d'activité logistique\",IF(B452=\"DV\",\"Orédui Carros Compostage - ZI de la Grave\",IF(B452=\"GP\",\"La Gaude K3 Sita Sud - 5211 Rte de St Jeannet\",IF(B452=\"GS\",\"Véolia Nice Tri - 20 Ch du Saquier\",IF(B452=\"B\",\"SEAS La Glacière - 1019 Rte de la Grasse\",IF(B452=\"M\",\"Carros\",IF(B452=\"N\",\"Sofovar - 126 Av Louis Lépine - 83600 Fréjus\")))))))","v":false},false]
[null,null,null,null,false,false]
[null,null,null,null,false,false]
[null,null,null,null,false,false]
[null,null,null,null,false,false]
[null,null,null,null,false,false]
[null,null,null,null,false,false]
[null,null,null,null,false,false]
[null,null,null,null,false,false]
[null,null,null,null,false,{"$f":"IF(OR(B461=\"TV\",B461=\"DV\",B461=\"GS\",B461=\"GP\",B461=\"B\"),\"SUEZ\",IF(OR(B461=\"M\"),\"DERICHEBOURG\"))","v":false}]
[null,null,null,null,false,false]
[null,null,null,null,false,false]
[null,null,null,null,false,false]
[null,null,null,null,false,false]
[null,null,null,null,false,false]
[null,null,null,null,false,false]
[null,null,null,null,false,false]
[null,null,null,null,false,false]
[null,null,null,null,false,false]
[null,null,null,null,false,false]
[null,null,null,null,false,false]
[null,null,null,null,false,false]
[null,null,null,null,false,false]
[null,null,null,null,false,false]
[null,null,null,null,false,false]
[null,null,null,null,false,false]
[null,null,null,null,false,false]
[null,null,null,null,false,false]
[null,null,null,null,false,false]
[null,null,null,null,false,false]
[null,null,null,null,false,false]
[null,null,null,null,false,false]
[null,null,null,null,false,false]
[null,null,null,null,false,false]
[null,null,null,null,false,false]
[null,null,null,null,false,false]
[null,null,null,null,false,false]
[null,null,null,null,false,false]
[null,null,null,null,false,false]
[null,null,null,null,false,false]
[null,null,null,null,false,false]
[null,null,null,null,false,false]
[null,null,null,null,false,false]
[null,null,null,null,false,false]
[null,null,null,null,false,false]
[null,null,null,null,false,false]
[null,null,null,null,false,false]
[null,null,null,null,false,false]
[null,null,null,null,false,false]
[null,null,null,null,false,false]
[null,null,null,null,false,false]
[null,null,null,null,false,false]
[null,null,null,null,false,false]
[null,null,null,null,false,false]
[null,null,null,null,false,false]
[null,null,null,null,false,false]
[null,null,null,null,false,false]
[null,null,null,null,false,false]
[null,null,null,null,false,false]
[null,null,null,null,false,false]
[null,null,null,null,false,false]
[null,null,null,null,false,false]
[null,null,null,null,false,false]
[null,null,null,null,false,false]
[null,null,null,null,{"$f":"IF(B516=\"TV\",\"Véolia Nice Tri - Parc d'activité logistique\",IF(B516=\"DV\",\"Orédui Carros Compostage - ZI de la Grave\",IF(B516=\"GP\",\"La Gaude K3 Sita Sud - 5211 Rte de St Jeannet\",IF(B516=\"GS\",\"Véolia Nice Tri - 20 Ch du Saquier\",IF(B516=\"B\",\"SEAS La Glacière - 1019 Rte de la Grasse\",IF(B516=\"M\",\"Carros\",IF(B516=\"N\",\"Sofovar - 126 Av Louis Lépine - 83600 Fréjus\")))))))","v":false},false]
[null,null,null,null,false,false]
[null,null,null,null,false,false]
[null,null,null,null,false,false]
[null,null,null,null,false,false]
[null,null,null,null,false,false]
[null,null,null,null,false,false]
[null,null,null,null,false,false]
[null,null,null,null,false,false]
[null,null,null,null,false,{"$f":"IF(OR(B525=\"TV\",B525=\"DV\",B525=\"GS\",B525=\"GP\",B525=\"B\"),\"SUEZ\",IF(OR(B525=\"M\"),\"DERICHEBOURG\"))","v":false}]
[null,null,null,null,false,false]
[null,null,null,null,false,false]
[null,null,null,null,false,false]
[null,null,null,null,false,false]
[null,null,null,null,false,false]
[null,null,null,null,false,false]
[null,null,null,null,false,false]
[null,null,null,null,false,false]
[null,null,null,null,false,false]
[null,null,null,null,false,false]
[null,null,null,null,false,false]
[null,null,null,null,false,false]
[null,null,null,null,false,false]
[null,null,null,null,false,false]
[null,null,null,null,false,false]
[null,null,null,null,false,false]
[null,null,null,null,false,false]
[null,null,null,null,false,false]
[null,null,null,null,false,false]
[null,null,null,null,false,false]
[null,null,null,null,false,false]
[null,null,null,null,false,false]
[null,null,null,null,false,false]
[null,null,null,null,false,false]
[null,null,null,null,false,false]
[null,null,null,null,false,false]
[null,null,null,null,false,false]
[null,null,null,null,false,false]
[null,null,null,null,false,false]
[null,null,null,null,false,false]
[null,null,null,null,false,false]
[null,null,null,null,false,false]
[null,null,null,null,false,false]
[null,null,null,null,false,false]
[null,null,null,null,false,false]
[null,null,null,null,false,false]
[null,null,null,null,false,false]
[null,null,null,null,false,false]
[null,null,null,null,false,false]
[null,null,null,null,false,false]
[null,null,null,null,false,false]
[null,null,null,null,false,false]
[null,null,null,null,false,false]
[null,null,null,null,false,false]
[null,null,null,null,false,false]
[null,null,null,null,false,false]
[null,null,null,null,false,false]
[null,null,null,null,false,false]
[null,null,null,null,false,false]
[null,null,null,null,false,false]
[null,null,null,null,false,false]
[null,null,null,null,false,false]
[null,null,null,null,false,false]
[null,null,null,null,false,false]
[null,null,null,null,{"$f":"IF(B580=\"TV\",\"Véolia Nice Tri - Parc d'activité logistique\",IF(B580=\"DV\",\"Orédui Carros Compostage - ZI de la Grave\",IF(B580=\"GP\",\"La Gaude K3 Sita Sud - 5211 Rte de St Jeannet\",IF(B580=\"GS\",\"Véolia Nice Tri - 20 Ch du Saquier\",IF(B580=\"B\",\"SEAS La Glacière - 1019 Rte de la Grasse\",IF(B580=\"M\",\"Carros\",IF(B580=\"N\",\"Sofovar - 126 Av Louis Lépine - 83600 Fréjus\")))))))","v":false},false]
[null,null,null,null,false,false]
[null,null,null,null,false,false]
[null,null,null,null,false,false]
[null,null,null,null,false,false]
[null,null,null,null,false,false]
[null,null,null,null,false,false]
[null,null,null,null,false,false]
[null,null,null,null,false,false]
[null,null,null,null,false,{"$f":"IF(OR(B589=\"TV\",B589=\"DV\",B589=\"GS\",B589=\"GP\",B589=\"B\"),\"SUEZ\",IF(OR(B589=\"M\"),\"DERICHEBOURG\"))","v":false}]
[null,null,null,null,false,false]
[null,null,null,null,false,false]
[null,null,null,null,false,false]
[null,null,null,null,false,false]
[null,null,null,null,false,false]
[null,null,null,null,false,false]
[null,null,null,null,false,false]
[null,null,null,null,false,false]
[null,null,null,null,false,false]
[null,null,null,null,false,false]
[null,null,null,null,false,false]
[null,null,null,null,false,false]
[null,null,null,null,false,false]
[null,null,null,null,false,false]
[null,null,null,null,false,false]
[null,null,null,null,false,false]
[null,null,null,null,false,false]
[null,null,null,null,false,false]
[null,null,null,null,false,false]
[null,null,null,null,false,false]
[null,null,null,null,false,false]
[null,null,null,null,false,false]
[null,null,null,null,false,false]
[null,null,null,null,false,false]
[null,null,null,null,false,false]
[null,null,null,null,false,false]
[null,null,null,null,false,false]
[null,null,null,null,false,false]
[null,null,null,null,false,false]
[null,null,null,null,false,false]
[null,null,null,null,false,false]
[null,null,null,null,false,false]
[null,null,null,null,false,false]
[null,null,null,null,false,false]
[null,null,null,null,false,false]
[null,null,null,null,false,false]
[null,null,null,null,false,false]
[null,null,null,null,false,false]
[null,null,null,null,false,false]
[null,null,null,null,false,false]
[null,null,null,null,false,false]
[null,null,null,null,false,false]
[null,null,null,null,false,false]
[null,null,null,null,false,false]
[null,null,null,null,false,false]
[null,null,null,null,false,false]
[null,null,null,null,false,false]
[null,null,null,null,false,false]
[null,null,null,null,false,false]
[null,null,null,null,false,false]
[null,null,null,null,false,false]
[null,null,null,null,false,false]
[null,null,null,null,false,false]
[null,null,null,null,false,false]
[null,null,null,null,{"$f":"IF(B644=\"TV\",\"Véolia Nice Tri - Parc d'activité logistique\",IF(B644=\"DV\",\"Orédui Carros Compostage - ZI de la Grave\",IF(B644=\"GP\",\"La Gaude K3 Sita Sud - 5211 Rte de St Jeannet\",IF(B644=\"GS\",\"Véolia Nice Tri - 20 Ch du Saquier\",IF(B644=\"B\",\"SEAS La Glacière - 1019 Rte de la Grasse\",IF(B644=\"M\",\"Carros\",IF(B644=\"N\",\"Sofovar - 126 Av Louis Lépine - 83600 Fréjus\")))))))","v":false},false]
[null,null,null,null,false,false]
[null,null,null,null,false,false]
[null,null,null,null,false,false]
[null,null,null,null,false,false]
[null,null,null,null,false,false]
[null,null,null,null,false,false]
[null,null,null,null,false,false]
[null,null,null,null,false,false]
[null,null,null,null,false,{"$f":"IF(OR(B653=\"TV\",B653=\"DV\",B653=\"GS\",B653=\"GP\",B653=\"B\"),\"SUEZ\",IF(OR(B653=\"M\"),\"DERICHEBOURG\"))","v":false}]
[null,null,null,null,false,false]
[null,null,null,null,false,false]
[null,null,null,null,false,false]
[null,null,null,null,false,false]
[null,null,null,null,false,false]
[null,null,null,null,false,false]
[null,null,null,null,false,false]
[null,null,null,null,false,false]
[null,null,null,null,false,false]
[null,null,null,null,false,false]
[null,null,null,null,false,false]
[null,null,null,null,false,false]
[null,null,null,null,false,false]
[null,null,null,null,false,false]
[null,null,null,null,false,false]
[null,null,null,null,false,false]
[null,null,null,null,false,false]
[null,null,null,null,false,false]
[null,null,null,null,false,false]
[null,null,null,null,false,false]
[null,null,null,null,false,false]
[null,null,null,null,false,false]
[null,null,null,null,false,false]
[null,null,null,null,false,false]
[null,null,null,null,false,false]
[null,null,null,null,false,false]
[null,null,null,null,false,false]
[null,null,null,null,false,false]
[null,null,null,null,false,false]
[null,null,null,null,false,false]
[null,null,null,null,false,false]
[null,null,null,null,false,false]
[null,null,null,null,false,false]
[null,null,null,null,false,false]
[null,null,null,null,false,false]
[null,null,null,null,false,false]
[null,null,null,null,false,false]
[null,null,null,null,false,false]
[null,null,null,null,false,false]
[null,null,null,null,false,false]
[null,null,null,null,false,false]
[null,null,null,null,false,false]
[null,null,null,null,false,false]
[null,null,null,null,false,false]
[null,null,null,null,false,false]
[null,null,null,null,false,false]
[null,null,null,null,false,false]
[null,null,null,null,false,false]
[null,null,null,null,false,false]
[null,null,null,null,false,false]
[null,null,null,null,false,false]
[null,null,null,null,false,false]
[null,null,null,null,false,false]
[null,null,null,null,false,false]
[null,null,null,null,{"$f":"IF(B708=\"TV\",\"Véolia Nice Tri - Parc d'activité logistique\",IF(B708=\"DV\",\"Orédui Carros Compostage - ZI de la Grave\",IF(B708=\"GP\",\"La Gaude K3 Sita Sud - 5211 Rte de St Jeannet\",IF(B708=\"GS\",\"Véolia Nice Tri - 20 Ch du Saquier\",IF(B708=\"B\",\"SEAS La Glacière - 1019 Rte de la Grasse\",IF(B708=\"M\",\"Carros\",IF(B708=\"N\",\"Sofovar - 126 Av Louis Lépine - 83600 Fréjus\")))))))","v":false},false]
[null,null,null,null,false,false]
[null,null,null,null,false,false]
[null,null,null,null,false,false]
[null,null,null,null,false,false]
[null,null,null,null,false,false]
[null,null,null,null,false,false]
[null,null,null,null,false,false]
[null,null,null,null,false,false]
[null,null,null,null,false,{"$f":"IF(OR(B717=\"TV\",B717=\"DV\",B717=\"GS\",B717=\"GP\",B717=\"B\"),\"SUEZ\",IF(OR(B717=\"M\"),\"DERICHEBOURG\"))","v":false}]
[null,null,null,null,false,false]
[null,null,null,null,false,false]
[null,null,null,null,false,false]
[null,null,null,null,false,false]
[null,null,null,null,false,false]
[null,null,null,null,false,false]
[null,null,null,null,false,false]
[null,null,null,null,false,false]
[null,null,null,null,false,false]
[null,null,null,null,false,false]
[null,null,null,null,false,false]
[null,null,null,null,false,false]
[null,null,null,null,false,false]
[null,null,null,null,false,false]
[null,null,null,null,false,false]
[null,null,null,null,false,false]
[null,null,null,null,false,false]
[null,null,null,null,false,false]
[null,null,null,null,false,false]
[null,null,null,null,false,false]
[null,null,null,null,false,false]
[null,null,null,null,false,false]
[null,null,null,null,false,false]
[null,null,null,null,false,false]
[null,null,null,null,false,false]
[null,null,null,null,false,false]
[null,null,null,null,false,false]
[null,null,null,null,false,false]
[null,null,null,null,false,false]
[null,null,null,null,false,false]
[null,null,null,null,false,false]
[null,null,null,null,false,false]
[null,null,null,null,false,false]
[null,null,null,null,false,false]
[null,null,null,null,false,false]
[null,null,null,null,false,false]
[null,null,null,null,false,false]
[null,null,null,null,false,false]
[null,null,null,null,false,false]
[null,null,null,null,false,false]
[null,null,null,null,false,false]
[null,null,null,null,false,false]
[null,null,null,null,false,false]
[null,null,null,null,false,false]
[null,null,null,null,false,false]
[null,null,null,null,false,false]
[null,null,null,null,false,false]
[null,null,null,null,false,false]
[null,null,null,null,false,false]
[null,null,null,null,false,false]
[null,null,null,null,false,false]
[null,null,null,null,false,false]
[null,null,null,null,false,false]
[null,null,null,null,false,false]
[null,null,null,null,{"$f":"IF(B772=\"TV\",\"Véolia Nice Tri - Parc d'activité logistique\",IF(B772=\"DV\",\"Orédui Carros Compostage - ZI de la Grave\",IF(B772=\"GP\",\"La Gaude K3 Sita Sud - 5211 Rte de St Jeannet\",IF(B772=\"GS\",\"Véolia Nice Tri - 20 Ch du Saquier\",IF(B772=\"B\",\"SEAS La Glacière - 1019 Rte de la Grasse\",IF(B772=\"M\",\"Carros\",IF(B772=\"N\",\"Sofovar - 126 Av Louis Lépine - 83600 Fréjus\")))))))","v":false},false]
[null,null,null,null,false,false]
[null,null,null,null,false,false]
[null,null,null,null,false,false]
[null,null,null,null,false,false]
[null,null,null,null,{"$f":"IF(B777=\"TV\",\"Véolia Nice Tri - Parc d'activité logistique\",IF(B777=\"DV\",\"Orédui Carros Compostage - ZI de la Grave\",IF(B777=\"GP\",\"La Gaude K3 Sita Sud - 5211 Rte de St Jeannet\",IF(B777=\"GS\",\"Véolia Nice Tri - 20 Ch du Saquier\",IF(B777=\"B\",\"SEAS La Glacière - 1019 Rte de la Grasse\",IF(B777=\"M\",\"Carros\",IF(B777=\"N\",\"Sofovar - 126 Av Louis Lépine - 83600 Fréjus\")))))))","v":false},{"$f":"IF(OR(B777=\"TV\",B777=\"DV\",B777=\"GS\",B777=\"GP\",B777=\"B\"),\"SUEZ\",IF(OR(B777=\"M\"),\"DERICHEBOURG\"))","v":false}]
[null,null,null,null,false,false]
[null,null,null,null,false,false]
[null,null,null,null,false,false]
[null,null,null,null,false,false]
[null,null,null,null,false,false]
[null,null,null,null,false,false]
[null,null,null,null,false,false]
[null,null,null,null,false,false]
[null,null,null,null,false,false]
[null,null,null,null,false,false]
[null,null,null,null,false,false]
[null,null,null,null,false,false]
[null,null,null,null,false,false]
[null,null,null,null,false,false]
[null,null,null,null,false,false]
[null,null,null,null,false,false]
[null,null,null,null,false,false]
[null,null,null,null,false,false]
[null,null,null,null,false,false]
[null,null,null,null,false,false]
[null,null,null,null,false,false]
[null,null,null,null,false,false]
[null,null,null,null,false,false]
[null,null,null,null,false,false]
[null,null,null,null,false,false]
[null,null,null,null,false,false]
[null,null,null,null,false,false]
[null,null,null,null,false,false]
[null,null,null,null,false,false]
[null,null,null,null,false,false]
[null,null,null,null,false,false]
[null,null,null,null,false,false]
[null,null,null,null,false,false]